Workbook

Sheet Hoja2 (hidden)
A1: CIUDAD Y/O MUNICIPIO | B1: TERMÓMETRO CON SONDA | C1: TERMOHIGROMETRO
B2: °C (LÍQUIDO) | C2: °C (AMBIENTE) | D2: RH%
A3: ARMENIA | B3: 27.2 | C3: 28.4 | D3: 58.1
A4: ARMENIA | B4: 22.7 | C4: 24.1 | D4: 37.9
A5: BARRANQUILLA | B5: 34.1 | C5: 30.8 | D5: 69.5
A6: BARRANQUILLA | B6: 33.7 | C6: 31.9 | D6: 66.1
A7: BOGOTÁ | B7: 22.1 | C7: 21.8 | D7: 47.8
A8: BOGOTÁ | B8: 19.8 | C8: 22.2 | D8: 44
A9: BUCARAMANGA | B9: 29.4 | C9: 30.7 | D9: 52.4
A10: BUCARAMANGA | B10: 30.5 | C10: 28.7 | D10: 60.1
A11: CALDAS | B11: 24.1 | C11: 23.7 | D11: 64.9
A12: CARTAGENA | B12: 32.2 | C12: 33.3 | D12: 65.8
A13: CARTAGENA | B13: 33.5 | C13: 32 | D13: 69.5
A14: IBAGUÉ | B14: 28.4 | C14: 25.1 | D14: 62.5
A15: IBAGUÉ | B15: 30.9 | C15: 31 | D15: 39.2
A16: MONTERIA | B16: 32.5 | C16: 33.3 | D16: 53.3
A17: MONTERIA | B17: 30.6 | C17: 28.9 | D17: 71.3
A18: OCAÑA | B18: 28.3 | C18: 27.5 | D18: 62.9
A19: OCAÑA | B19: 25.5 | C19: 27.6 | D19: 59.9
A20: PASTO | B20: 21.2 | C20: 19.1 | D20: 59.5
A21: PASTO | B21: 22.6 | C21: 21.4 | D21: 49.4
A22: PIEDECUESTA | B22: 29.9 | C22: 30.8 | D22: 49.4
A23: PIEDECUESTA | B23: 27.5 | C23: 26.3 | D23: 57.4
A24: ROVIRA | B24: 34.2 | C24: 31.6 | D24: 38.4
A25: ROVIRA | B25: 32 | C25: 29.1 | D25: 51.5
A26: SALGAR | B26: 27.2 | C26: 25.3 | D26: 68.1
A27: ZIPAQUIRA | B27: 20.1 | C27: 21.8 | D27: 50.6
A28: ZIPAQUIRA | B28: 19.3 | C28: 17.8 | D28: 60.2
A29: VALLEDUPAR | B29: 34.1 | C29: 30.9 | D29: 59.4
A30: VALLEDUPAR | B30: 36.5 | C30: 36.8 | D30: 44.8
A31: SAN BERNARDO | B31: 24 | C31: 20.2 | D31: 81
A32: MOSQUERA | B32: 21.9 | C32: 19 | D32: 57.7
A33: CAJICÁ | B33: 21.4 | C33: 20.3 | D33: 57.8
A34: SILVANIA | B34: 23.8 | C34: 22.7 | D34: 66.7
A35: SALENTO | B35: 20.6 | C35: 21.2 | D35: 67.8
A36: ACACIAS | B36: 28.5 | C36: 29.8 | D36: 60.9
A37: GUALANDAY | B37: 33.8 | C37: 25.2 | D37: 80
A38: Fusagasugá | B38: 21.8 | C38: 20.8 | D38: 79.3
A39: GARAGOA | B39: 26.3 | C39: 28.4 | D39: 53.3
A40: MUZO | B40: 25.2 | C40: 25.8 | D40: 69.6
A41: TUNJA | B41: 22 | C41: 19.3 | D41: 53.8
A42: TUTA | B42: 23 | C42: 17.3 | D42: 66.1
A43: PROVIDENCIA | B43: 27.9 | C43: 28.8 | D43: 67.7
A44: SAN ANDRÉS | B44: 29.1 | C44: 29.6 | D44: 70.1
A45: SAN ANDRÉS | B45: 30.7 | C45: 33.1 | D45: 61
A46: GUADUAS | B46: 27.9 | C46: 26.1 | D46: 66.6
B47: =+MAX(B3:B46) -> 36.5
B48: =+MIN(B3:B46) -> 19.3
B49: =+B47-B48 -> 17.2

Sheet DATOS 0 (hidden)
F1: HOJA DE CÁLCULO PARA CALIBRACIÓN DE TERMÓMETROS DIGITALES
B5: Solicitante: | E5: Laboratorio de calibración de temperatúra y humedad | J5: Número de certificado: | N5: LCTD-
B6: Dirección: | E6: Avenida carrera 50 # 26-50 int 2, piso 5 | J6: Código interno LCTD-XX-XXXXX (compuesto por N° Radicado) | N6: LCTD-
B7: Ciudad: | E7: Bogotá D.C.
B8: Fecha de recepción: | J8: Unidad de calibración: | N8: °C
B9: Fecha de calibración: | J9: Método de calibración: | N9: Comparación en medio isotérmicos.
B11: DATOS DEL INSTRUMENTO BAJO CALIBRACIÓN (IBC)
B12: Instrumento: | J12: Intervalo de medición : | M12: 10 | O12: 50 | Q12: °C
B13: Fabricante: | J13: Resolución: | O13: =+Q12 -> °C
B14: Modelo: | J14: Canal:
B15: Serie:
B17: DATOS DEL INSTRUMENTO UTILIZADO EN LA CALIBRACIÓN
B18: Instrumento: | E18: Baño Térmico | J18: Instrumento: | M18: Termómetro
B19: Marca: | E19: Polyscience | J19: Marca: | M19: Lufft
A20: 98 | B20: Serie: | E20: 2110-90004 | J20: Serie: | M20: 008.0916.1212.006 - 347980.006
B21: Modelo: | E21: AP15RCAL-A11BR | J21: Modelo: | M21: XP100 - PT100
B22: Certificado No: | E22: MI-0841 | J22: Certificado No: | M22: 5736
B23: Proveedor de trazabilidad: | E23: Unión Metrológica | J23: Proveedor de trazabilidad: | M23: INM
B24: Fecha de calibración: | E24: 2021-12-06 | J24: Fecha de calibración: | M24: 16/02/2022
B26: Instrumento: | E26: Termómetro digital | J26: Instrumento: | M26: Termómetro digital
B27: Marca: | E27: Lufft | J27: Marca: | M27: YOWEXA
B28: Serie: | E28: 022.1014.1212.005 - 347980.004 | J28: Serie: | M28: 190724GSM0087287
B29: Modelo: | E29: XP100 - PT100 | J29: Modelo: | M29: NO INDICA
B30: Certificado No: | E30: 5737 | J30: Certificado No: | M30: 5717 // 5720
B31: Proveedor de trazabilidad: | E31: INM | J31: Proveedor de trazabilidad: | M31: INM
B32: Fecha de calibración: | E32: 2022-02-16 | J32: Fecha de calibración: | M32: 2021-01-27
B34: Instrumento: | J34: Instrumento:
B35: Marca: | E35: =I43:J54 ->  | J35: Marca:
B36: Serie: | J36: Serie:
B37: Modelo: | J37: Modelo:
B38: Certificado No: | J38: Certificado No:
B39: Proveedor de trazabilidad: | J39: Proveedor de trazabilidad:
B40: Fecha de calibración: | J40: Fecha de calibración:
B42: Verificar que: | I42: SI | J42: NO | K42: OBSERVACIONES
B43: ¿El termómetro está roto?
B46: ¿El termómetro está midiendo similar a la temperatura ambiente?
B49: ¿El termómetro esta libre de golpes o arañazos?
B52: ¿El instrumento de medición presenta todas las partes?
C56: OBSERVACIONES
C57: Este es un ejercicio prueba, por tanto el certificado sera parte del ejercicio.
C61: Grupo de trabajo del laboratorio
C63: No | D63: Nombres | I63: Roles del grupo de trabajo
C64: AC | D64: Astrid Camila Riveros Meza | I64: Responsable de la Dirección Técnica del Laboratorio de Temperatura y Humedad | M64: Metrólogo del Laboratorio Temperatura y Humedad
C66: PV | D66: Pedro José Vargas López | I66: Sustituto del Responsable de la Dirección Técnica del Laboratorio de Temperatura y Humedad | M66: Metrólogo del Laboratorio Temperatura y Humedad

Sheet RT03-F55 (hidden)
D1: HOJA DE CÁLCULO PARA CALIBRACIÓN DE TERMÓMETROS DIGITALES
G5: Diligenció
A6: Código Interno: | B6: ='DATOS 0'!N6 -> LCTD-
D8: OBSERVACIONES
A14: t | B14: 0 | C14: °C | D14: 1
A15: n | B15: Patrón °C | C15: FECHA | D15: 2021-08-03
A16: 1 | B16: 0.001 | C16: HORA | D16: 15:14:00
A17: 2 | B17: 0.001 | C17: PATRÓN | D17: Pt 100
A18: 3 | B18: 0.002 | C18: MEDIO | D18: Punto de Hielo | E18: SP | F18: =+B14 -> 0 | G18: °C
A19: 4 | B19: 0.002 | C19: INMERSIÓN | D19: 53 | E19: mm
A20: 5 | B20: 0.001 | C20: ta, °C | D20: ha, % HR | E20: THG: | F20: CS-TE-005
A21: 6 | C21: 21.7 | D21: 53
A22: 7
A23: 8
A24: 9
A25: PROMEDIO | B25: =AVERAGE(B16:B24) -> 0.0014
A26: DESV EST | B26: =STDEV(B16:B24) -> 0.0005477225575
A29: t | C29: °C
A30: n | B30: Patrón | C30: Patrón °C | D30: IBC °C | E30: Fecha | K30: Patrón Corregido °C | L30: Patrón t Corregido °C
A31: 1 | E31: Hora | K31: =+'RT03-F55'!B31^2*'interpolación pat'!$B$18+'RT03-F55'!B31*'interpolación pat'!$C$18+'interpolación pat'!$D$18+B31 -> -0.0186780694 | L31: =+'RT03-F55'!C31^2*'interpolación pat'!$I$18+'RT03-F55'!C31*'interpolación pat'!$J$18+'interpolación pat'!$K$18+C31 -> -0.02797670232
A32: 2 | E32: Patrón | K32: =+'RT03-F55'!B32^2*'interpolación pat'!$B$18+'RT03-F55'!B32*'interpolación pat'!$C$18+'interpolación pat'!$D$18+B32 -> -0.0186780694 | L32: =+'RT03-F55'!C32^2*'interpolación pat'!$I$18+'RT03-F55'!C32*'interpolación pat'!$J$18+'interpolación pat'!$K$18+C32 -> -0.02797670232
A33: 3 | E33: Medio | F33: Baño líquido | G33: SP | I33: °C | K33: =+'RT03-F55'!B33^2*'interpolación pat'!$B$18+'RT03-F55'!B33*'interpolación pat'!$C$18+'interpolación pat'!$D$18+B33 -> -0.0186780694 | L33: =+'RT03-F55'!C33^2*'interpolación pat'!$I$18+'RT03-F55'!C33*'interpolación pat'!$J$18+'interpolación pat'!$K$18+C33 -> -0.02797670232
A34: 4 | E34: Inmersión | G34: mm | H34: THG: | K34: =+'RT03-F55'!B34^2*'interpolación pat'!$B$18+'RT03-F55'!B34*'interpolación pat'!$C$18+'interpolación pat'!$D$18+B34 -> -0.0186780694 | L34: =+'RT03-F55'!C34^2*'interpolación pat'!$I$18+'RT03-F55'!C34*'interpolación pat'!$J$18+'interpolación pat'!$K$18+C34 -> -0.02797670232
A35: 5 | E35: ta, °C | F35: ha, % hr | G35: ta, °C | H35: ha, % hr | K35: =+'RT03-F55'!B35^2*'interpolación pat'!$B$18+'RT03-F55'!B35*'interpolación pat'!$C$18+'interpolación pat'!$D$18+B35 -> -0.0186780694 | L35: =+'RT03-F55'!C35^2*'interpolación pat'!$I$18+'RT03-F55'!C35*'interpolación pat'!$J$18+'interpolación pat'!$K$18+C35 -> -0.02797670232
A36: 6 | G36: =+E36*'Interpol TH'!$B$15+'Interpol TH'!$C$15+E36 -> 0.2486442918 | H36: =+F36*'Interpol TH'!$F$15+'Interpol TH'!$G$15+F36 -> -14.52692832 | K36: =+'RT03-F55'!B36^2*'interpolación pat'!$B$18+'RT03-F55'!B36*'interpolación pat'!$C$18+'interpolación pat'!$D$18+B36 -> -0.0186780694 | L36: =+'RT03-F55'!C36^2*'interpolación pat'!$I$18+'RT03-F55'!C36*'interpolación pat'!$J$18+'interpolación pat'!$K$18+C36 -> -0.02797670232
A37: 7 | E37: Estabilidad | K37: =+'RT03-F55'!B37^2*'interpolación pat'!$B$18+'RT03-F55'!B37*'interpolación pat'!$C$18+'interpolación pat'!$D$18+B37 -> -0.0186780694 | L37: =+'RT03-F55'!C37^2*'interpolación pat'!$I$18+'RT03-F55'!C37*'interpolación pat'!$J$18+'interpolación pat'!$K$18+C37 -> -0.02797670232
A38: 8 | E38: Uniformidad | F38: =+MAX(ABS(K31-L31),ABS(K32-L32),ABS(K33-L33),ABS(K34-L34),ABS(K35-L35),ABS(K36-L36),ABS(K37-L37),ABS(K38-L38),ABS(K39-L39)) -> 0.009298632926 | G38: =+IF(F38<'Interpolación bñ '!C8,"SI","NO") -> SI | K38: =+'RT03-F55'!B38^2*'interpolación pat'!$B$18+'RT03-F55'!B38*'interpolación pat'!$C$18+'interpolación pat'!$D$18+B38 -> -0.0186780694 | L38: =+'RT03-F55'!C38^2*'interpolación pat'!$I$18+'RT03-F55'!C38*'interpolación pat'!$J$18+'interpolación pat'!$K$18+C38 -> -0.02797670232
A39: 9 | E39: ESTA | F39: =+ABS(MAX(K31:K39)-MIN(K31:K39)) -> 0 | G39: =+IF(F39<'Interpolación bñ '!D9,"SI","NO") -> SI | K39: =+'RT03-F55'!B39^2*'interpolación pat'!$B$18+'RT03-F55'!B39*'interpolación pat'!$C$18+'interpolación pat'!$D$18+B39 -> -0.0186780694 | L39: =+'RT03-F55'!C39^2*'interpolación pat'!$I$18+'RT03-F55'!C39*'interpolación pat'!$J$18+'interpolación pat'!$K$18+C39 -> -0.02797670232
A40: PROMEDIO | B40: =AVERAGE(B31:B39) ->  | C40: =AVERAGE(C31:C39) ->  | D40: =AVERAGE(D31:D39) ->  | E40: ¿Pasa el punto de calibración? | F40: =+IF(AND(G38="SI",G39="SI"),"SI","NO") -> SI | K40: =+AVERAGE(K31:K39) -> -0.0186780694 | L40: =+AVERAGE(L31:L39) -> -0.02797670232
A41: DESV EST | B41: =STDEV(B31:B39) ->  | C41: =STDEV(C31:C39) ->  | D41: =STDEV(D31:D39) ->  | K41: =STDEV(K31:K39) -> 0
A44: t | C44: °C
A45: n | B45: Patrón °C | C45: Patrón °C | D45: IBC °C | E45: Fecha | K45: Patrón Corregido °C | L45: Patrón t Corregido °C
A46: 1 | E46: Hora | K46: =+'RT03-F55'!B46^2*'interpolación pat'!$B$18+'RT03-F55'!B46*'interpolación pat'!$C$18+'interpolación pat'!$D$18+B46 -> -0.0186780694 | L46: =+'RT03-F55'!C46^2*'interpolación pat'!$I$18+'RT03-F55'!C46*'interpolación pat'!$J$18+'interpolación pat'!$K$18+C46 -> -0.02797670232
A47: 2 | E47: Patrón | K47: =+'RT03-F55'!B47^2*'interpolación pat'!$B$18+'RT03-F55'!B47*'interpolación pat'!$C$18+'interpolación pat'!$D$18+B47 -> -0.0186780694 | L47: =+'RT03-F55'!C47^2*'interpolación pat'!$I$18+'RT03-F55'!C47*'interpolación pat'!$J$18+'interpolación pat'!$K$18+C47 -> -0.02797670232
A48: 3 | E48: Medio | F48: Baño líquido | G48: SP | I48: °C | K48: =+'RT03-F55'!B48^2*'interpolación pat'!$B$18+'RT03-F55'!B48*'interpolación pat'!$C$18+'interpolación pat'!$D$18+B48 -> -0.0186780694 | L48: =+'RT03-F55'!C48^2*'interpolación pat'!$I$18+'RT03-F55'!C48*'interpolación pat'!$J$18+'interpolación pat'!$K$18+C48 -> -0.02797670232
A49: 4 | E49: Inmersión | G49: mm | H49: THG: | K49: =+'RT03-F55'!B49^2*'interpolación pat'!$B$18+'RT03-F55'!B49*'interpolación pat'!$C$18+'interpolación pat'!$D$18+B49 -> -0.0186780694 | L49: =+'RT03-F55'!C49^2*'interpolación pat'!$I$18+'RT03-F55'!C49*'interpolación pat'!$J$18+'interpolación pat'!$K$18+C49 -> -0.02797670232
A50: 5 | E50: ta, °C | F50: ha, % hr | G50: ta, °C | H50: ha, % hr | K50: =+'RT03-F55'!B50^2*'interpolación pat'!$B$18+'RT03-F55'!B50*'interpolación pat'!$C$18+'interpolación pat'!$D$18+B50 -> -0.0186780694 | L50: =+'RT03-F55'!C50^2*'interpolación pat'!$I$18+'RT03-F55'!C50*'interpolación pat'!$J$18+'interpolación pat'!$K$18+C50 -> -0.02797670232
A51: 6 | G51: =+E51*'Interpol TH'!$B$15+'Interpol TH'!$C$15+E51 -> 0.2486442918 | H51: =+F51*'Interpol TH'!$F$15+'Interpol TH'!$G$15+F51 -> -14.52692832 | K51: =+'RT03-F55'!B51^2*'interpolación pat'!$B$18+'RT03-F55'!B51*'interpolación pat'!$C$18+'interpolación pat'!$D$18+B51 -> -0.0186780694 | L51: =+'RT03-F55'!C51^2*'interpolación pat'!$I$18+'RT03-F55'!C51*'interpolación pat'!$J$18+'interpolación pat'!$K$18+C51 -> -0.02797670232
A52: 7 | E52: Estabilidad | K52: =+'RT03-F55'!B52^2*'interpolación pat'!$B$18+'RT03-F55'!B52*'interpolación pat'!$C$18+'interpolación pat'!$D$18+B52 -> -0.0186780694 | L52: =+'RT03-F55'!C52^2*'interpolación pat'!$I$18+'RT03-F55'!C52*'interpolación pat'!$J$18+'interpolación pat'!$K$18+C52 -> -0.02797670232
A53: 8 | E53: Uniformidad | F53: =+MAX(ABS(K46-L46),ABS(K47-L47),ABS(K48-L48),ABS(K49-L49),ABS(K50-L50),ABS(K51-L51),ABS(K52-L52),ABS(K53-L53),ABS(K54-L54)) -> 0.009298632926 | G53: =+IF(F53<'Interpolación bñ '!C9,"SI","NO") -> SI | K53: =+'RT03-F55'!B53^2*'interpolación pat'!$B$18+'RT03-F55'!B53*'interpolación pat'!$C$18+'interpolación pat'!$D$18+B53 -> -0.0186780694 | L53: =+'RT03-F55'!C53^2*'interpolación pat'!$I$18+'RT03-F55'!C53*'interpolación pat'!$J$18+'interpolación pat'!$K$18+C53 -> -0.02797670232
A54: 9 | E54: ESTA | F54: =+ABS(MAX(K46:K54)-MIN(K46:K54)) -> 0 | G54: =+IF(F54<'Interpolación bñ '!D9,"SI","NO") -> SI | K54: =+'RT03-F55'!B54^2*'interpolación pat'!$B$18+'RT03-F55'!B54*'interpolación pat'!$C$18+'interpolación pat'!$D$18+B54 -> -0.0186780694 | L54: =+'RT03-F55'!C54^2*'interpolación pat'!$I$18+'RT03-F55'!C54*'interpolación pat'!$J$18+'interpolación pat'!$K$18+C54 -> -0.02797670232
A55: PROMEDIO | B55: =AVERAGE(B46:B54) ->  | C55: =AVERAGE(C46:C54) ->  | D55: =AVERAGE(D46:D54) ->  | E55: ¿Pasa el punto de calibración? | F55: =+IF(AND(G53="SI",G54="SI"),"SI","NO") -> SI | K55: =+AVERAGE(K46:K54) -> -0.0186780694 | L55: =+AVERAGE(L46:L54) -> -0.02797670232
A56: DESV EST | B56: =STDEV(B46:B54) ->  | C56: =STDEV(C46:C54) ->  | D56: =STDEV(D46:D54) ->  | K56: =STDEV(K46:K54) -> 0
A59: t | C59: °C
A60: n | B60: Patrón °C | C60: Patrón °C | D60: IBC °C | E60: Fecha | K60: Patrón Corregido °C | L60: Patrón t Corregido °C
A61: 1 | E61: Hora | K61: =+'RT03-F55'!B61^2*'interpolación pat'!$B$18+'RT03-F55'!B61*'interpolación pat'!$C$18+'interpolación pat'!$D$18+B61 -> -0.0186780694 | L61: =+'RT03-F55'!C61^2*'interpolación pat'!$I$18+'RT03-F55'!C61*'interpolación pat'!$J$18+'interpolación pat'!$K$18+C61 -> -0.02797670232
A62: 2 | E62: Patrón | K62: =+'RT03-F55'!B62^2*'interpolación pat'!$B$18+'RT03-F55'!B62*'interpolación pat'!$C$18+'interpolación pat'!$D$18+B62 -> -0.0186780694 | L62: =+'RT03-F55'!C62^2*'interpolación pat'!$I$18+'RT03-F55'!C62*'interpolación pat'!$J$18+'interpolación pat'!$K$18+C62 -> -0.02797670232
A63: 3 | E63: Medio | F63: Baño líquido | G63: SP | I63: °C | K63: =+'RT03-F55'!B63^2*'interpolación pat'!$B$18+'RT03-F55'!B63*'interpolación pat'!$C$18+'interpolación pat'!$D$18+B63 -> -0.0186780694 | L63: =+'RT03-F55'!C63^2*'interpolación pat'!$I$18+'RT03-F55'!C63*'interpolación pat'!$J$18+'interpolación pat'!$K$18+C63 -> -0.02797670232
A64: 4 | E64: Inmersión | G64: mm | H64: THG: | K64: =+'RT03-F55'!B64^2*'interpolación pat'!$B$18+'RT03-F55'!B64*'interpolación pat'!$C$18+'interpolación pat'!$D$18+B64 -> -0.0186780694 | L64: =+'RT03-F55'!C64^2*'interpolación pat'!$I$18+'RT03-F55'!C64*'interpolación pat'!$J$18+'interpolación pat'!$K$18+C64 -> -0.02797670232
A65: 5 | E65: ta, °C | F65: ha, % hr | G65: ta, °C | H65: ha, % hr | K65: =+'RT03-F55'!B65^2*'interpolación pat'!$B$18+'RT03-F55'!B65*'interpolación pat'!$C$18+'interpolación pat'!$D$18+B65 -> -0.0186780694 | L65: =+'RT03-F55'!C65^2*'interpolación pat'!$I$18+'RT03-F55'!C65*'interpolación pat'!$J$18+'interpolación pat'!$K$18+C65 -> -0.02797670232
A66: 6 | G66: =+E66*'Interpol TH'!$B$15+'Interpol TH'!$C$15+E66 -> 0.2486442918 | H66: =+F66*'Interpol TH'!$F$15+'Interpol TH'!$G$15+F66 -> -14.52692832 | K66: =+'RT03-F55'!B66^2*'interpolación pat'!$B$18+'RT03-F55'!B66*'interpolación pat'!$C$18+'interpolación pat'!$D$18+B66 -> -0.0186780694 | L66: =+'RT03-F55'!C66^2*'interpolación pat'!$I$18+'RT03-F55'!C66*'interpolación pat'!$J$18+'interpolación pat'!$K$18+C66 -> -0.02797670232
A67: 7 | E67: Estabilidad | K67: =+'RT03-F55'!B67^2*'interpolación pat'!$B$18+'RT03-F55'!B67*'interpolación pat'!$C$18+'interpolación pat'!$D$18+B67 -> -0.0186780694 | L67: =+'RT03-F55'!C67^2*'interpolación pat'!$I$18+'RT03-F55'!C67*'interpolación pat'!$J$18+'interpolación pat'!$K$18+C67 -> -0.02797670232
A68: 8 | E68: Uniformidad | F68: =+MAX(ABS(K61-L61),ABS(K62-L62),ABS(K63-L63),ABS(K64-L64),ABS(K65-L65),ABS(K66-L66),ABS(K67-L67),ABS(K68-L68),ABS(K69-L69)) -> 0.009298632926 | G68: =+IF(F68<'Interpolación bñ '!C10,"SI","NO") -> SI | K68: =+'RT03-F55'!B68^2*'interpolación pat'!$B$18+'RT03-F55'!B68*'interpolación pat'!$C$18+'interpolación pat'!$D$18+B68 -> -0.0186780694 | L68: =+'RT03-F55'!C68^2*'interpolación pat'!$I$18+'RT03-F55'!C68*'interpolación pat'!$J$18+'interpolación pat'!$K$18+C68 -> -0.02797670232
A69: 9 | E69: ESTA | F69: =+ABS(MAX(K61:K69)-MIN(K61:K69)) -> 0 | G69: =+IF(F69<'Interpolación bñ '!D10,"SI","NO") -> SI | K69: =+'RT03-F55'!B69^2*'interpolación pat'!$B$18+'RT03-F55'!B69*'interpolación pat'!$C$18+'interpolación pat'!$D$18+B69 -> -0.0186780694 | L69: =+'RT03-F55'!C69^2*'interpolación pat'!$I$18+'RT03-F55'!C69*'interpolación pat'!$J$18+'interpolación pat'!$K$18+C69 -> -0.02797670232
A70: PROMEDIO | B70: =AVERAGE(B61:B69) ->  | C70: =AVERAGE(C61:C69) ->  | D70: =AVERAGE(D61:D69) ->  | E70: ¿Pasa el punto de calibración? | F70: =+IF(AND(G68="SI",G69="SI"),"SI","NO") -> SI | K70: =+AVERAGE(K61:K69) -> -0.0186780694 | L70: =+AVERAGE(L61:L69) -> -0.02797670232
A71: DESV EST | B71: =STDEV(B61:B69) ->  | C71: =STDEV(C61:C69) ->  | D71: =STDEV(D61:D69) ->  | K71: =STDEV(K61:K69) -> 0
A74: t | B74: 190 | C74: °C | D74: 4
A75: n | B75: Patrón °C | C75: Patrón °C | D75: FECHA | E75: 2021-08-03
A76: 1 | B76: 192.3 | C76: 193.4 | D76: HORA | E76: 17:43:00
A77: 2 | B77: 192.4 | C77: 193.3 | D77: PATRÓN | E77: Punto de Hielo
A78: 3 | B78: 192.3 | C78: 193.4 | D78: MEDIO | E78: 9150 | F78: SP | G78: =+B74 -> 190 | H78: °C
A79: 4 | B79: 192.4 | C79: 193.3 | D79: INMERSIÓN | E79: 53 | F79: mm
A80: 5 | B80: 192.3 | C80: 193.4 | D80: ta, °C | E80: ha, % HR | F80: THG: | G80: CS-TE-005
A81: 6 | B81: 192.4 | C81: 193.3 | D81: 21.7 | E81: 53
A82: 7 | B82: 192.3 | C82: 193.4
A83: 8 | B83: 192.4 | C83: 193.3
A84: 9 | B84: 192.3 | C84: 193.4
A85: PROMEDIO | B85: =AVERAGE(B76:B84) -> 192.3444444 | C85: =AVERAGE(C76:C84) -> 193.3555556
A86: DESV EST | B86: =STDEV(B76:B84) -> 0.05270462767 | C86: =STDEV(C76:C84) -> 0.05270462767
A88: SEGUNDO PUNTO DE HIELO
A89: t | B89: 0
A90: n | B90: =+B75 -> Patrón °C
A91: 1
A92: 2 | C92: Fecha
A93: 3 | C93: Hora
A94: 4 | C94: Patrón | D94: Punto de Hielo
A95: 5 | C95: Medio | D95: Vaso Dewar | E95: SP | F95: =+B89 -> 0
A96: 6 | C96: Inmersión | E96: mm | F96: THG:
A97: 7 | C97: ta, °C | D97: ha, % hr | E97: ta, °C | F97: ha, % hr
A98: 8 | E98: =+C98*'Interpol TH'!$B$15+'Interpol TH'!$C$15+C98 -> 0.2486442918 | F98: =+D98*'Interpol TH'!$F$15+'Interpol TH'!$G$15+D98 -> -14.52692832
A99: 9
A100: PROMEDIO | B100: =AVERAGE(B91:B99) -> 
A101: DESV EST | B101: =STDEV(B91:B99) -> 
A104: Calidad de calibración

Sheet Incertidumbre (hidden)
E1: HOJA DE CÁLCULO PARA CALIBRACIÓN DE TERMÓMETROS DIGITALES
A7: SP °C | B7: =+'[4] DATOS 1'!B88 -> 0 | L7: Incertidumbre Standard | N7: Grados de Libertad | O7: Coeficiente de Sensibilidad | S7: Porcentaje
B8: Fuente de Incertidumbre | E8: Valor Estimado | F8: Unidad | G8: Tipo | H8: Distribución | I8: u | J8: Unidad | K8: Factor | L8: u tipica | M8: Unidad | N8: G.L. | O8: Ci | P8: Unidad | Q8: Contribución a u | R8: Unidad | S8: %
B9: Repetibilidad del Patrón 1 | E9: =+'[4] DATOS 1'!B99 -> 0.002111111111 | F9: °C | G9: A | H9: N | I9: =+'[4] DATOS 1'!B100 -> 0.0009279607271 | J9: °C | K9: 3 | L9: =I9/K9 -> 0.0003093202424 | M9: =+J9 -> °C | N9: 8 | O9: 1 | P9: -- | Q9: =ABS(L9*O9) -> 0.0003093202424 | R9: °C | S9: =(Q9*100%)^2/$L$20^2 ->  | V9: Uniformidad °C | W9: Estabilidad °C
B10: Incertidumbre del Termómetro Patrón 1 | E10: 0 | F10: - | G10: B | H10: N | I10: =+IF(E9<200,V17,V16) -> -1.247044458e-07 | J10: °C | K10: 2 | L10: =I10/K10 -> -6.235222292e-08 | M10: =+J10 -> °C | N10: 200 | O10: 1 | P10: -- | Q10: 6.235222292e-08 | R10: °C | U10: 9150 | V10: =+[4]Incertidumbre!E9^2*'[4]Interpolación bñ '!#REF!++[4]Incertidumbre!E9*'[4]Interpolación bñ '!#REF!+'[4]Interpolación bñ '!#REF! ->  | W10: =+E9^2*'[4]Interpolación bñ '!#REF!+E9*'[4]Interpolación bñ '!#REF!+'[4]Interpolación bñ '!#REF! -> 
B11: Resolución Indicador patrón | E11: 0 | F11: - | G11: B | H11: R | I11: 0.001 | J11: Ohm | K11: 1.732050808 | L11: 0.0005773502692 | M11: Ohm | N11: 1000000 | O11: 0.003925 | P11: °C/Ohm | Q11: 2.266099807e-06 | R11: °C | U11: 7103 | V11: =+E9*'[4]Interpolación bñ '!$B$20+'[4]Interpolación bñ '!$C$20 -> 0.0003699598889 | W11: =+E9*'[4]Interpolación bñ '!$B$27+'[4]Interpolación bñ '!$C$27 -> 0.001384913093
B12: Deriva del Termómetro Patrón 1 | E12: 0 | F12: - | G12: B | H12: R | I12: =+IF($E9<200,[4]Incertidumbre!W17,[4]Incertidumbre!W16) -> 0.01 | J12: Ohm | K12: 1.732050808 | L12: 0.005773502692 | M12: Ohm | N12: 1000000 | O12: 0.003925 | P12: °C/Ohm | Q12: 2.266099807e-05 | R12: °C | U12: 6330 | V12: =+E9*'[4]Interpolación bñ '!#REF!+'[4]Interpolación bñ '!#REF! ->  | W12: =+E9*'[4]Interpolación bñ '!#REF!+'[4]Interpolación bñ '!#REF! -> 
B13: Incertidumbre del indicador | E13: 0 | F13: - | G13: B | H13: N | I13: =+IF(E9<200,[4]Incertidumbre!X17,[4]Incertidumbre!X16) ->  | J13: =+IF('[4] DATOS 1'!$H$32<200, "Ohm", "mV") -> Ohm | K13: 2 | M13: Ohm | N13: 200 | O13: 0.003925 | P13: °C/Ohm | R13: °C
B14: Deriva del indicador | E14: 0 | F14: - | G14: B | H14: R | I14: =+IF(E9<200,[4]Incertidumbre!X17/2,X16/2) ->  | J14: =+IF('[4] DATOS 1'!$H$32<200, "Ohm", "mV") -> Ohm | K14: 1.732050808 | M14: Ohm | N14: 1000000 | O14: 0.0039251 | P14: °C/Ohm | R14: °C
B15: Uniformidad del medio | E15: 0 | F15: - | G15: B | H15: R | I15: =+IF(+'[4] DATOS 1'!D94=7103,V11,IF('[4] DATOS 1'!D94=6330,V12,IF('[4] DATOS 1'!D94=9150,V10,"REVISAR"))) -> REVISAR | J15: °C | K15: 1.732050808 | M15: °C | N15: 1000000 | O15: 1 | P15: -- | R15: °C | V15: U sensor °C | W15: deriva °C | X15: U indicador ohm | Y15: Resolución
B16: Estabilidad | E16: 0 | F16: - | G16: B | H16: R | I16: =+IF('[4] DATOS 1'!D94=7103,$W$11,IF('[4] DATOS 1'!D94=6330,$W$12,IF('[4] DATOS 1'!D94=9150,$W$10,"REVISAR"))) -> REVISAR | J16: °C | K16: 1.732050808 | M16: °C | N16: 1000000 | O16: 1 | P16: -- | R16: °C | U16: Ter Tipo R | V16: =+E9^3*'[4]interpolación pat'!$B$28+E9^2*'[4]interpolación pat'!$C$15+E9*'[4]interpolación pat'!$D$25+'[4]interpolación pat'!$E$25 -> 0 | W16: 0.5 | X16: =+'[4] DATOS 1'!B99^4*#REF!+'[4] DATOS 1'!B99^3*#REF!+'[4] DATOS 1'!B99^2*#REF!+'[4] DATOS 1'!B99*#REF!+#REF! ->  | Y16: 1e-05
B17: Repetibilidad del Termómetro IBC | E17: =+'[4] DATOS 1'!I100 -> 0 | F17: °C | G17: A | H17: N | I17: =+'[4] DATOS 1'!I101 -> 0 | J17: °C | K17: 3 | L17: 0 | M17: °C | N17: 8 | O17: 1 | P17: -- | Q17: 0 | R17: °C | U17: PRT pt 100 | V17: =+E9^4*'[4]interpolación pat'!$I$18+E9^3*'[4]interpolación pat'!$J$18+E9^2*'[4]interpolación pat'!$K$18+E9*'[4]interpolación pat'!$L$18+'[4]interpolación pat'!$M$18 -> -1.247044458e-07 | W17: 0.01 | X17: =+'[4] DATOS 1'!B99^4*#REF!+'[4] DATOS 1'!B99^3*#REF!+'[4] DATOS 1'!B99^2*#REF!+'[4] DATOS 1'!B99*#REF!+#REF! ->  | Y17: 0.0001
B18: Resolución Indicador | E18: 0 | F18: - | G18: B | H18: R | I18: =+'[4]DATOS 0'!L14 -> 0.01 | J18: °C | K18: 1.732050808 | L18: 0.005773502692 | M18: °C | N18: 1000000 | O18: 1 | P18: -- | Q18: 0.005773502692 | R18: °C
B19: Variación en cero | E19: =+ABS('[4] DATOS 1'!#REF!-'[4] DATOS 1'!$I$100) ->  | F19: °C | G19: A | H19: R | I19: =+E19/2 ->  | J19: °C | K19: 1.732050808 | M19: °C | N19: 1000000 | O19: 1 | P19: -- | R19: °C
B20: Corrección | E20: =+E9-E17 -> 0.002111111111 | F20: - | G20: A | H20: N | I20: =L20*K20 ->  | J20: °C | K20: =TINV(0.05,N20) ->  | L20: =(SUMSQ(Q9:Q19)^0.5) ->  | M20: °C | N20: =L20^4/(Q9^4/N9+Q10^4/N10+Q11^4/N11+Q12^4/N12+Q13^4/N13+Q14^4/N14+Q15^4/N15+Q16^4/N16+Q17^4/N17+Q18^4/N18+Q19^4/N19) ->  | S20: =SUM(S9:S19) -> 
E22: Corrección C (°C) | F22: K | H22: °C
E23: =+E20 -> 0.002111111111 | F23: =K20 ->  | G23: ± | H23: =I20 -> 
I24: SE HACE REDONDEO DE DECIMALES TAL COMO LO RECOMIENDA LA GUM
A26: SP °C | B26: =+'[4] DATOS 1'!B28 -> 10 | E26: Valor Estimado | F26: Unidad | G26: Tipo | H26: Distribución | I26: u | J26: Unidad | K26: Factor | L26: Incertidumbre Standard | N26: Grados de Libertad | O26: Coeficiente de Sensibilidad | Q26: Contribución a u | R26: Unidad | S26: Porcentaje
B27: Fuente de Incertidumbre | L27: u tipica | M27: Unidad | N27: G.L. | O27: Ci | P27: Unidad | S27: %
A28: 1 | B28: Repetibilidad del patrón 1 | E28: =+'[4] DATOS 1'!K39 -> 9.968142534 | F28: °C | G28: A | H28: N | I28: =+'RT03-F55'!K40 -> -0.0186780694 | J28: °C | K28: 3 | L28: =I28/K28 -> -0.006226023133 | M28: =+J28 -> °C | N28: 8 | O28: 1 | P28: -- | Q28: =ABS(L28*O28) -> 0.006226023133 | R28: °C | S28: =(Q28*100%)^2/$L$38^2 -> 
A29: 2 | B29: Incertidumbre del termómetro patrón 1 | E29: 0 | F29: °C | G29: B | H29: N | I29: 0.044 | J29: °C | K29: 2 | L29: =I29/K29 -> 0.022 | M29: =+J29 -> °C | N29: 200 | O29: 1 | P29: -- | Q29: 0.022 | R29: °C | S29: =(Q29*100%)^2/$L$38^2 -> 
A30: 3 | B30: Interpolación corrección patrón | E30: 0 | F30: °C | G30: B | H30: N | I30: =+SQRT('interpolación pat'!$C$22/(5-3)) -> 0.0006380304914 | J30: °C | K30: =+SQRT(5) -> 2.236067977 | L30: 0.0002853359101 | M30: °C | N30: 200 | O30: 1 | P30: -- | Q30: 0.0002853359101 | S30: =(Q30*100%)^2/$L$38^2 -> 
A31: 4 | B31: Resolución patrón | E31: 0 | F31: °C | G31: B | H31: R | I31: 0.001 | J31: °C | K31: 1.732050808 | L31: 0.0005773502692 | M31: °C | N31: 1000000 | O31: 1 | P31: -- | Q31: 0.0005773502692 | R31: °C
A32: 5 | B32: Deriva del termómetro patrón 1 | E32: 0 | F32: °C | G32: B | H32: R | I32: 0.0003 | J32: °C | K32: 1.732050808 | L32: 0.0001732050808 | M32: °C | N32: 1000000 | O32: 1 | P32: -- | Q32: 0.0001732050808 | R32: °C
A33: 6 | B33: Uniformidad del medio | E33: 0 | F33: °C | G33: B | H33: R | I33: =+'Interpolación bñ '!C8 -> 0.068 | J33: °C | K33: 1.732050808 | L33: 0.0392598183 | M33: °C | N33: 1000000 | O33: 1 | P33: -- | Q33: 0.0392598183 | R33: °C
A34: 7 | B34: Estabilidad | E34: 0 | F34: °C | G34: B | H34: R | I34: =+'Interpolación bñ '!D8 -> 0.0702 | J34: °C | K34: 1.732050808 | L34: 0.0405299889 | M34: °C | N34: 1000000 | O34: 1 | P34: -- | Q34: 0.0405299889 | R34: °C
A35: 8 | B35: Repetibilidad del termómetro IBC | E35: =+'[4] DATOS 1'!D39 -> 10.02 | F35: °C | G35: A | H35: N | I35: =+'RT03-F55'!D40 ->  | J35: °C | K35: 3 | M35: °C | N35: 8 | O35: 1 | P35: -- | R35: °C
A36: 9 | B36: Resolución indicador IBC | E36: 0 | F36: °C | G36: B | H36: R | I36: =+'DATOS 0'!L14 -> 0 | J36: °C | K36: 1.732050808 | L36: 0 | M36: °C | N36: 1000000 | O36: 1 | P36: -- | Q36: 0 | R36: °C
A37: 10 | B37: Variación a cero | E37: 0 | F37: °C | G37: A | H37: R | I37: =+ABS('RT03-F55'!B24-'RT03-F55'!B99) -> 0 | J37: °C | K37: 1.732050808 | L37: 0 | M37: °C | N37: 1000000 | O37: 1 | P37: -- | Q37: 0 | R37: °C
B38: Corrección | E38: =+E28-E35 -> -0.05185746618 | F38: °C | G38: A | H38: N | I38: =L38*K38 ->  | J38: °C | K38: =TINV(0.05,N38) ->  | L38: =(SUMSQ(Q28:Q37)^0.5) ->  | M38: °C | N38: =L38^4/(Q28^4/N28+Q29^4/N29++Q30^4/N30+Q31^4/N31+Q32^4/N32+Q33^4/N33+Q34^4/N34+Q35^4/N35+Q36^4/N36+Q37^4/N37) ->  | S38: =SUM(S28:S37) -> 
E40: Corrección C (°C) | F40: K | H40: °C
E41: =+E38 -> -0.05185746618 | F41: =K38 ->  | G41: ± | H41: =I38 -> 
A45: SP °C | B45: =+'[4] DATOS 1'!B43 -> 20 | E45: Valor Estimado | F45: Unidad | G45: Tipo | H45: Distribución | I45: u | J45: Unidad | K45: Factor | L45: Incertidumbre Standard | N45: Grados de Libertad | O45: Coeficiente de Sensibilidad | Q45: Contribución a u | R45: Unidad | S45: Porcentaje
B46: Fuente de Incertidumbre | L46: u tipica | M46: Unidad | N46: G.L. | O46: Ci | P46: Unidad | S46: %
A47: 1 | B47: Repetibilidad del patrón 1 | E47: =+'[4] DATOS 1'!K54 -> 20.01143574 | F47: °C | G47: A | H47: N | I47: =+'RT03-F55'!K55 -> -0.0186780694 | J47: °C | K47: 3 | L47: =I47/K47 -> -0.006226023133 | M47: =+J47 -> °C | N47: 8 | O47: 1 | P47: -- | Q47: =ABS(L47*O47) -> 0.006226023133 | R47: °C | S47: =(Q47*100%)^2/$L$57^2 ->  | V47: Uniformidad °C | W47: Estabilidad °C
A48: 2 | B48: Incertidumbre del termómetro patrón 1 | E48: 0 | F48: - | G48: B | H48: N | I48: 0.044 | J48: °C | K48: 2 | L48: =I48/K48 -> 0.022 | M48: =+J48 -> °C | N48: 200 | O48: 1 | P48: -- | Q48: =ABS(L48*O48) -> 0.022 | R48: °C | S48: =(Q48*100%)^2/$L$57^2 ->  | U48: 9150 | V48: =+[4]Incertidumbre!E47^2*'[4]Interpolación bñ '!#REF!++[4]Incertidumbre!E47*'[4]Interpolación bñ '!#REF!+'[4]Interpolación bñ '!#REF! ->  | W48: =+E47^2*'[4]Interpolación bñ '!#REF!+E47*'[4]Interpolación bñ '!#REF!+'[4]Interpolación bñ '!#REF! -> 
A49: 3 | B49: Interpolación corrección patrón | E49: 0 | F49: - | G49: B | H49: N | I49: =+SQRT('interpolación pat'!$C$22/(5-3)) -> 0.0006380304914 | J49: °C | K49: =+K30 -> 2.236067977 | L49: 0.0002853359101 | M49: °C | N49: 200 | O49: 1 | P49: -- | Q49: 0.0002853359101
A50: 4 | B50: Resolución patrón | E50: 0 | F50: - | G50: B | H50: R | I50: 0.001 | J50: °C | K50: 1.732050808 | L50: 0.0005773502692 | M50: °C | N50: 1000000 | O50: 1 | P50: -- | Q50: 0.0005773502692 | R50: °C | U50: 7103 | V50: =+E47*'[4]Interpolación bñ '!$B$20+'[4]Interpolación bñ '!$C$20 -> -1.02172791e-05 | W50: =+E47*'[4]Interpolación bñ '!$B$27+'[4]Interpolación bñ '!$C$27 -> 0.0005611958953
A51: 5 | B51: Deriva del termómetro patrón 1 | E51: 0 | F51: - | G51: B | H51: R | I51: =+I32 -> 0.0003 | J51: °C | K51: 1.732050808 | L51: 0.0001732050808 | M51: °C | N51: 1000000 | O51: 1 | P51: -- | Q51: 0.0001732050808 | R51: °C | U51: 6330 | V51: =+E47*'[4]Interpolación bñ '!#REF!+'[4]Interpolación bñ '!#REF! ->  | W51: =+E47*'[4]Interpolación bñ '!#REF!+'[4]Interpolación bñ '!#REF! -> 
A52: 6 | B52: Uniformidad del medio | E52: 0 | F52: - | G52: B | H52: R | I52: =+'Interpolación bñ '!C9 -> 0.066 | J52: °C | K52: 1.732050808 | L52: 0.03810511777 | M52: °C | N52: 1000000 | O52: 1 | P52: -- | Q52: 0.03810511777 | R52: °C | V52: U sensor °C | W52: deriva °C | X52: U indicador ohm | Y52: Resolución
A53: 7 | B53: Estabilidad | E53: 0 | F53: - | G53: B | H53: R | I53: =+'Interpolación bñ '!D9 -> 0.0717 | J53: °C | K53: 1.732050808 | L53: 0.0413960143 | M53: °C | N53: 1000000 | O53: 1 | P53: -- | Q53: 0.0413960143 | R53: °C | U53: Ter Tipo R | V53: =+'[4] DATOS 1'!B54^3*'[4]interpolación pat'!$B$28+'[4] DATOS 1'!B54^2*'[4]interpolación pat'!$C$15+'[4] DATOS 1'!B54*'[4]interpolación pat'!$D$25+'[4]interpolación pat'!$E$25 -> 0 | W53: 0.5 | X53: =+E47^4*#REF!+E47^3*#REF!+E47^2*#REF!+E47*#REF!+#REF! ->  | Y53: 1e-05
A54: 8 | B54: Repetibilidad del termómetro IBC | E54: =+'[4] DATOS 1'!D54 -> 20.04111111 | F54: °C | G54: A | H54: N | I54: =+'RT03-F55'!D55 ->  | J54: °C | K54: 3 | M54: °C | N54: 8 | O54: 1 | P54: -- | R54: °C | U54: PRT pt 100 | V54: =+E47^4*'[4]interpolación pat'!$I$18+E47^3*'[4]interpolación pat'!$J$18+E47^2*'[4]interpolación pat'!$K$18+E47*'[4]interpolación pat'!$L$18+'[4]interpolación pat'!$M$18 -> -25.86503888 | W54: 0.01 | X54: ='[4] DATOS 1'!B54^4*#REF!+'[4] DATOS 1'!B54^3*#REF!+'[4] DATOS 1'!B54^2*#REF!+'[4] DATOS 1'!B54*#REF!+#REF! ->  | Y54: 0.0001
A55: 9 | B55: Resolución indicador IBC | E55: 0 | F55: - | G55: B | H55: R | I55: =+I36 -> 0 | J55: °C | K55: 1.732050808 | L55: 0 | M55: °C | N55: 1000000 | O55: 1 | P55: -- | Q55: 0 | R55: °C
A56: 10 | B56: Variación en cero | E56: 1 | F56: - | G56: A | H56: R | I56: =+I37 -> 0 | J56: °C | K56: 1.732050808 | L56: 0 | M56: °C | N56: 1000000 | O56: 1 | P56: -- | Q56: 0 | R56: °C
B57: Corrección | E57: =+E47-E54 -> -0.02967536923 | F57: - | G57: A | H57: N | I57: =L57*K57 ->  | J57: °C | K57: =TINV(0.05,N57) ->  | L57: =(SUMSQ(Q47:Q56)^0.5) ->  | M57: °C | N57: =L57^4/(Q47^4/N47+Q48^4/N48+Q49^4/N49+Q50^4/N50+Q51^4/N51+Q52^4/N52+Q53^4/N53+Q54^4/N54+Q55^4/N55+Q56^4/N56) ->  | S57: =SUM(S47:S56) -> 
E59: Corrección C (°C) | F59: K | H59: °C | P59: =100-0.05 -> 99.95
E60: =+E57 -> -0.02967536923 | F60: =K57 ->  | G60: ± | H60: =I57 -> 
A64: SP °C | B64: =+'[4] DATOS 1'!B58 -> 40 | E64: Valor Estimado | F64: Unidad | G64: Tipo | H64: Distribución | I64: u | J64: Unidad | K64: Factor | L64: Incertidumbre Standard | N64: Grados de Libertad | O64: Coeficiente de Sensibilidad | Q64: Contribución a u | R64: Unidad | S64: Porcentaje
B65: Fuente de Incertidumbre | L65: u tipica | M65: Unidad | N65: G.L. | O65: Ci | P65: Unidad | S65: %
A66: 1 | B66: Repetibilidad del patrón 1 | E66: =+'[4] DATOS 1'!K69 -> 39.93002591 | F66: °C | G66: A | H66: N | I66: =+'RT03-F55'!B70 ->  | J66: °C | K66: 3 | L66: =I66/K66 ->  | M66: =+J66 -> °C | N66: 8 | O66: 1 | P66: -- | Q66: =ABS(L66*O66) ->  | R66: °C | S66: =(Q66*100%)^2/$L$76^2 ->  | V66: Uniformidad °C | W66: Estabilidad °C
A67: 2 | B67: Incertidumbre del termómetro patrón 1 | E67: 0 | F67: - | G67: B | H67: N | I67: 0.044 | J67: °C | K67: 2 | L67: =I67/K67 -> 0.022 | M67: =+J67 -> °C | N67: 200 | O67: 1 | P67: -- | Q67: =ABS(L67*O67) -> 0.022 | R67: °C | S67: =(Q67*100%)^2/$L$76^2 ->  | U67: 9150 | V67: =+[4]Incertidumbre!E66^2*'[4]Interpolación bñ '!#REF!++[4]Incertidumbre!E66*'[4]Interpolación bñ '!#REF!+'[4]Interpolación bñ '!#REF! ->  | W67: =+E66^2*'[4]Interpolación bñ '!#REF!+E66*'[4]Interpolación bñ '!#REF!+'[4]Interpolación bñ '!#REF! -> 
A68: 3 | B68: Interpolación corrección patrón | E68: 0 | F68: - | G68: B | H68: N | I68: 0.044 | J68: °C | K68: =+K49 -> 2.236067977 | L68: 0.0196773982 | M68: °C | N68: 200 | O68: 1 | P68: -- | Q68: 0.0196773982
A69: 4 | B69: Resolución indicador patrón | E69: 0 | F69: - | G69: B | H69: R | I69: 0.001 | J69: °C | K69: 1.732050808 | L69: 0.0005773502692 | M69: °C | N69: 1000000 | O69: 1 | P69: -- | Q69: 0.0005773502692 | R69: °C | U69: 7103 | V69: =+E66*'[4]Interpolación bñ '!$B$20+'[4]Interpolación bñ '!$C$20 -> -0.0003886704924 | W69: =+E66*'[4]Interpolación bñ '!$B$27+'[4]Interpolación bñ '!$C$27 -> -0.0002587860668
A70: 5 | B70: Deriva del termómetro patrón 1 | E70: 0 | F70: - | G70: B | H70: R | I70: =+I51 -> 0.0003 | J70: °C | K70: 1.732050808 | L70: 0.0001732050808 | M70: °C | N70: 1000000 | O70: 1 | P70: -- | Q70: 0.0001732050808 | R70: °C | U70: 6330 | V70: =+E66*'[4]Interpolación bñ '!#REF!+'[4]Interpolación bñ '!#REF! ->  | W70: =+E66*'[4]Interpolación bñ '!#REF!+'[4]Interpolación bñ '!#REF! -> 
A71: 6 | B71: Uniformidad del medio | E71: 0 | F71: - | G71: B | H71: R | I71: =+'Interpolación bñ '!C9 -> 0.066 | J71: °C | K71: 1.732050808 | L71: 0.03810511777 | M71: °C | N71: 1000000 | O71: 1 | P71: -- | Q71: 0.03810511777 | R71: °C | V71: U sensor °C | W71: deriva °C | X71: U indicador ohm | Y71: Resolución
A72: 7 | B72: Estabilidad | E72: 0 | F72: - | G72: B | H72: R | I72: =+'Interpolación bñ '!D9 -> 0.0717 | J72: °C | K72: 1.732050808 | L72: 0.0413960143 | M72: °C | N72: 1000000 | O72: 1 | P72: -- | Q72: 0.0413960143 | R72: °C | U72: Ter Tipo R | V72: =+'[4] DATOS 1'!B73^3*'[4]interpolación pat'!$B$28+'[4] DATOS 1'!B73^2*'[4]interpolación pat'!$C$15+'[4] DATOS 1'!B73*'[4]interpolación pat'!$D$25+'[4]interpolación pat'!$E$25 -> 0 | W72: 0.5 | X72: =+E66^4*#REF!+E66^3*#REF!+E66^2*#REF!+E66*#REF!+#REF! ->  | Y72: 1e-05
A73: 8 | B73: Repetibilidad del termómetro IBC | E73: =+'[4] DATOS 1'!D69 -> 40.03 | F73: °C | G73: A | H73: N | I73: =+'RT03-F55'!D70 ->  | J73: °C | K73: 3 | M73: °C | N73: 8 | O73: 1 | P73: -- | R73: °C | U73: PRT pt 100 | V73: =+E66^4*'[4]interpolación pat'!$I$18+E66^3*'[4]interpolación pat'!$J$18+E66^2*'[4]interpolación pat'!$K$18+E66*'[4]interpolación pat'!$L$18+'[4]interpolación pat'!$M$18 -> -154.7433941 | W73: 0.01 | X73: ='[4] DATOS 1'!B73^4*#REF!+'[4] DATOS 1'!B73^3*#REF!+'[4] DATOS 1'!B73^2*#REF!+'[4] DATOS 1'!B73*#REF!+#REF! ->  | Y73: 0.0001
A74: 9 | B74: Resolución indicador IBC | E74: 0 | F74: - | G74: B | H74: R | I74: =+I55 -> 0 | J74: °C | K74: 1.732050808 | L74: 0 | M74: °C | N74: 1000000 | O74: 1 | P74: -- | Q74: 0 | R74: °C
A75: 10 | B75: Variación en cero | E75: 1 | F75: - | G75: A | H75: R | I75: =+I56 -> 0 | J75: °C | K75: 1.732050808 | L75: 0 | M75: °C | N75: 1000000 | O75: 1 | P75: -- | Q75: 0 | R75: °C
B76: Corrección | E76: =+E66-E73 -> -0.09997408503 | F76: - | G76: A | H76: N | I76: =L76*K76 ->  | J76: °C | K76: =TINV(0.05,N76) ->  | L76: =(SUMSQ(Q66:Q75)^0.5) ->  | M76: °C | N76: =L76^4/(Q66^4/N66+Q67^4/N67+Q68^4/N68+Q69^4/N69+Q70^4/N70+Q71^4/N71+Q72^4/N72+Q73^4/N73+Q74^4/N74+Q75^4/N75) ->  | S76: =SUM(S66:S75) -> 
E78: Corrección C (°C) | F78: K | H78: °C
E79: =+E76 -> -0.09997408503 | F79: =+K76 ->  | G79: ± | H79: =+I76 -> 
A83: SP °C | B83: =+'[4] DATOS 1'!B73 -> 190 | L83: Incertidumbre Standard | N83: Grados de Libertad | O83: Coeficiente de Sensibilidad | S83: Porcentaje
B84: Fuente de Incertidumbre | E84: Valor Estimado | F84: Unidad | G84: Tipo | H84: Distribución | I84: u | J84: Unidad | K84: Factor | L84: u tipica | M84: Unidad | N84: G.L. | O84: Ci | P84: Unidad | Q84: Contribución a u | R84: Unidad | S84: %
B85: Repetibilidad del Patrón 1 | E85: =+'[4] DATOS 1'!B75 -> 192.3 | F85: °C | G85: A | H85: N | I85: =+'[4] DATOS 1'!B85 -> 0.05270462767 | J85: °C | K85: 3 | L85: =I85/K85 -> 0.01756820922 | M85: =+J85 -> °C | N85: 8 | O85: 1 | P85: -- | Q85: =ABS(L85*O85) -> 0.01756820922 | R85: °C | S85: =(Q85*100%)^2/$L$76^2 ->  | V85: Uniformidad °C | W85: Estabilidad °C
B86: Incertidumbre del Termómetro Patrón 1 | E86: 0 | F86: - | G86: B | H86: N | I86: =+IF(E85<200,V93,V92) -> -7918.569833 | J86: °C | K86: 2 | L86: =I86/K86 -> -3959.284917 | M86: =+J86 -> °C | N86: 200 | O86: 1 | P86: -- | Q86: 3959.284917 | R86: °C | S86: =(Q86*100%)^2/$L$76^2 ->  | U86: 9150 | V86: =+[4]Incertidumbre!E85^2*'[4]Interpolación bñ '!#REF!++[4]Incertidumbre!E85*'[4]Interpolación bñ '!#REF!+'[4]Interpolación bñ '!#REF! ->  | W86: =+E85^2*'[4]Interpolación bñ '!#REF!+E85*'[4]Interpolación bñ '!#REF!+'[4]Interpolación bñ '!#REF! -> 
B87: Resolución Indicador patrón | E87: 0 | F87: - | G87: B | H87: R | I87: 0.001 | J87: Ohm | K87: 1.732050808 | L87: 0.0005773502692 | M87: Ohm | N87: 1000000 | O87: 0.003925 | P87: °C/Ohm | Q87: 2.266099807e-06 | R87: °C | U87: 7103 | V87: =+E85*'[4]Interpolación bñ '!$B$20+'[4]Interpolación bñ '!$C$20 -> -0.0032837 | W87: =+E85*'[4]Interpolación bñ '!$B$27+'[4]Interpolación bñ '!$C$27 -> -0.00653135
B88: Deriva del Termómetro Patrón 1 | E88: 0 | F88: - | G88: B | H88: R | I88: =+IF($E85<200,[4]Incertidumbre!W93,[4]Incertidumbre!W92) -> 0.01 | J88: °C | K88: 1.732050808 | L88: 0.005773502692 | M88: °C | N88: 1000000 | O88: 1 | P88: -- | Q88: 0.005773502692 | R88: °C | U88: 6330 | V88: =+E85*'[4]Interpolación bñ '!#REF!+'[4]Interpolación bñ '!#REF! ->  | W88: =+E85*'[4]Interpolación bñ '!#REF!+'[4]Interpolación bñ '!#REF! -> 
B89: Incertidumbre del indicador | E89: 0 | F89: - | G89: B | H89: R | I89: =+IF(E85<200,[4]Incertidumbre!X93,[4]Incertidumbre!X92) ->  | J89: =+IF('[4] DATOS 1'!$H$32<200, "Ohm", "mV") -> Ohm | K89: 2 | M89: Ohm | N89: 200 | O89: 0.003925 | P89: -- | R89: °C
B90: Deriva del indicador | E90: 0 | F90: - | G90: B | H90: R | I90: =+IF(E85<200,[4]Incertidumbre!X93,X92) ->  | J90: =+IF('[4] DATOS 1'!$H$32<200, "Ohm", "mV") -> Ohm | K90: 1.732050808 | M90: Ohm | N90: 1000000 | O90: 0.0039251 | P90: °C/Ohm | R90: °C
B91: Uniformidad del medio | E91: 0 | F91: - | G91: B | H91: R | I91: =+IF('[4] DATOS 1'!E77=7103,V87,IF('[4] DATOS 1'!E77=6330,V88,IF('[4] DATOS 1'!E77=9150,V86,"REVISAR"))) ->  | J91: °C | K91: 1.732050808 | M91: °C | N91: 1000000 | O91: 1 | P91: -- | R91: °C | V91: U sensor °C | W91: deriva °C | X91: U indicador ohm | Y91: Resolución
B92: Estabilidad | E92: 0 | F92: - | G92: B | H92: R | I92: =+IF('[4] DATOS 1'!E77=7103,W87,IF('[4] DATOS 1'!E77=6330,W88,IF('[4] DATOS 1'!E77=9150,W86,"REVISAR"))) ->  | J92: °C | K92: 1.732050808 | M92: °C | N92: 1000000 | O92: 1 | P92: -- | R92: °C | U92: Ter Tipo R | V92: ='[4] DATOS 1'!B838^3*'[4]interpolación pat'!$B$28+'[4] DATOS 1'!B84^2*'[4]interpolación pat'!$C$15+'[4] DATOS 1'!B84*'[4]interpolación pat'!$D$25+'[4]interpolación pat'!$E$25 -> 0 | W92: 0.5 | X92: =+'[4] DATOS 1'!B84^4*#REF!+'[4] DATOS 1'!B84^3*#REF!+'[4] DATOS 1'!B84^2*#REF!+'[4] DATOS 1'!B84*#REF!+#REF! ->  | Y92: 1e-05
B93: Repetibilidad del Termómetro IBC | E93: =+'[4] DATOS 1'!C84 -> 193.3555556 | F93: °C | G93: A | H93: N | I93: =+'[4] DATOS 1'!C85 -> 0.05270462767 | J93: Ohm | K93: 3 | L93: 0.01756820922 | M93: Ohm | N93: 8 | O93: 0.003925 | P93: -- | Q93: 6.89552212e-05 | R93: °C | U93: PRT pt 100 | V93: =+(E85^4*'[4]interpolación pat'!$I$18+E85^3*'[4]interpolación pat'!$J$18+E85^2*'[4]interpolación pat'!$K$18+E85*'[4]interpolación pat'!$L$18+'[4]interpolación pat'!$M$18) -> -7918.569833 | W93: 0.01 | X93: =+'[4] DATOS 1'!B84^4*#REF!+'[4] DATOS 1'!B84^3*#REF!+'[4] DATOS 1'!B84^2*#REF!+'[4] DATOS 1'!B84*#REF!+#REF! ->  | Y93: 0.0001
B94: Resolución Indicador patrón | E94: 0 | F94: - | G94: B | H94: R | I94: 0.001 | J94: Ohm | K94: 1.732050808 | L94: 0.0005773502692 | M94: Ohm | N94: 1000000 | O94: 0.003925 | P94: °C/Ohm | Q94: 2.266099807e-06 | R94: °C
B95: Variación en cero | E95: =+ABS('[4] DATOS 1'!#REF!-'[4] DATOS 1'!$I$100) ->  | F95: Ohm | G95: A | H95: R | I95: =+E95/2 ->  | J95: °C | K95: 1.732050808 | M95: °C | N95: 1000000 | O95: 1 | P95: -- | R95: °C | S95: =(Q95*100%)^2/$L$96^2 -> 
B96: Corrección | E96: =+E85-E93 -> -1.055555556 | F96: - | G96: A | H96: N | I96: =L96*K96 ->  | J96: °C | K96: =TINV(0.05,N96) ->  | L96: =(SUMSQ(Q85:Q95)^0.5) ->  | M96: °C | N96: =L96^4/(Q85^4/N85+Q86^4/N86+Q87^4/N87+Q88^4/N88+Q89^4/N89+Q90^4/N90+Q91^4/N91+Q92^4/N92+Q93^4/N93+Q94^4/N94+Q95^4/N95) ->  | S96: =SUM(S85:S95) -> 
E97: Corrección C (°C) | F97: K | H97: °C
E98: =+E96 -> -1.055555556 | F98: =+K95 -> 1.732050808 | G98: ± | H98: =+I96 -> 
I99: SE HACE REDONDEO DE DECIMALES TAL COMO LO RECOMIENDA LA GUM

Sheet interpolación pat (hidden)
D1: HOJA DE CÁLCULO PARA CALIBRACIÓN DE TERMÓMETROS DIGITALES
B5: 2022-02-16 N° 5736 | I5: 2022-02-16 N° 5737
B6: Patrón 1 | I6: Patrón 2
B7: Valor Medido °C | C7: Corrección °C | D7: U °C | I7: Valor Medido °C | J7: Corrección °C | K7: ohm
B8: 0 | C8: -0.019 | D8: 0.013
B9: 10 | C9: -0.033 | D9: 0.044 | F9: =+B9^2*$B$18+B9*$C$18+$D$18 -> -0.03343546881 | G9: =+ABS(C9-F9) -> 0.0004354688139 | I9: 10.014 | J9: -0.047 | K9: 0.044
B10: 20.003 | C10: -0.047 | D10: 0.044 | F10: =+B10^2*$B$18+B10*$C$18+$D$18 -> -0.04737521353 | G10: =+ABS(C10-F10) -> 0.0003752135298 | I10: 20.021 | J10: -0.064 | K10: 0.044
B11: 29.997 | C11: -0.061 | D11: 0.044 | F11: -0.06048132034 | G11: 0.0005186796648 | I11: 30.018 | J11: -0.082 | K11: 0.044
B12: 40.002 | C12: -0.073 | D12: 0.044 | F12: -0.07277977065 | G12: 0.0002202293494 | I12: 40.027 | J12: -0.097 | K12: 0.044
B13: 50.002 | C13: -0.084 | D13: 0.044 | F13: -0.08425015727 | G13: 0.000250157273 | I13: 50.03 | J13: -0.112 | K13: 0.044
G14: =+SUMSQ(G9:G13) -> 7.10526503e-07
B16: Lectura | I16: Lectura
A17: grado poli | B17: 2 | C17: 1 | D17: 0 | E17: 0 | I17: 2 | J17: 1 | K17: 0
A18: coef | B18: =+LINEST(C8:C13,B8:B13^{1,2},1,1) -> 4.108560564e-06 | C18: -0.001516825547 | D18: -0.0186780694 | I18: =+LINEST(J9:J13,I9:I13^{1,2},1,1) -> 5.000281135e-06 | J18: -0.001929617278 | K18: -0.02797670232
B19: 8.525005988e-07 | C19: 4.440863515e-05 | D19: 0.0004721498958 | I19: 1.704382602e-06 | J19: 0.0001043097697 | K19: 0.001369916776
B20: 0.9997301257 | C20: 0.0005209497147 | I20: 0.99969385 | J20: 0.0006382500681
B21: 5556.642963 | C21: 3 | I21: 3265.373019 | J21: 2
B22: 0.003016019168 | C22: 8.141658158e-07 | I22: 0.002660385274 | J22: 8.147262987e-07
B26: INCERTIDUMBRE
B27: 3 | C27: 2 | D27: 1 | E27: 0
B28: =+LINEST(D9:D11,B9:B11^{1,2},1,1) -> 0 | C28: 0 | D28: 0.044
B29: 0 | C29: 0 | D29: 0
B30: 1 | C30: 0

Sheet Interpol TH (hidden)
C1: HOJA DE CÁLCULO PARA CALIBRACIÓN DE TERMÓMETROS DIGITALES
B5: Número de certificado y fecha de calibración 5720, 2021-01-27 | F5: Número de certificado y fecha de calibración 5717, 2021-01-27
B6: Temperatura °C | F6: Humedad % hr
B7: V medido | C7: Corrección | D7: U | F7: V medido | G7: Corrección | H7: U
B8: 9.7 | C8: 0.2 | D8: 0.2 | F8: 37.1 | G8: -7.1 | H8: 1.7
B9: 24.9 | C9: 0.2 | D9: 0.2 | F9: 54.2 | G9: -4.2 | H9: 1.7
B10: 40 | C10: 0.1 | D10: 0.2 | F10: 79.8 | G10: 1.2 | H10: 1.7
B13: Interpolación | F13: Interpolación
B14: m | C14: b | F14: m | G14: b
B15: =+LINEST(C8:C10,B8:B10,TRUE,TRUE) -> -0.003296687338 | C15: 0.2486442918 | F15: =+LINEST(G8:G10,F8:F10,TRUE,TRUE) -> 0.1956796316 | G15: -14.52692832
B16: 0.001911728094 | C16: 0.05309535835 | F16: 0.0113134034 | G16: 0.6750885807
B17: 0.7483480256 | C17: 0.0409594901 | F17: 0.9966684525 | G17: 0.3438393761
B18: 2.973741921 | C18: 1 | F18: 299.1608087 | G18: 1
B19: 0.004988986837 | C19: 0.001677679829 | F19: 35.36844115 | G19: 0.1182255166

Sheet Interpolación bñ (hidden)
C1: HOJA DE CÁLCULO PARA CALIBRACIÓN DE TERMÓMETROS DIGITALES
B4: Número de certificado y fecha de calibración
B6: Polysicience
B7: VALOR MEDIDO | C7: UNIFORMIDAD | D7: ESTABILIDAD
B8: 10 | C8: 0.068 | D8: 0.0702
B9: 20 | C9: 0.066 | D9: 0.0717
B10: 50 | C10: 0.0372 | D10: 0.0268
B12: =+LINEST(C8:C10,B8:B10^{2},1,1) -> -1.315789474e-05 | C12: 0.0702245614
B13: 7.495424547e-07 | C13: 0.001096486082
B14: 0.9967654592 | C14: 0.001386147001
B15: 308.1628926 | C15: 1
B18: Uniformidad
B19: 2 | C19: 1 | D19: 0
B20: =+LINEST(C8:C10,B8:B10^{1,2},1,1) -> -1.9e-05 | C20: 0.00037 | D20: 0.0662
B21: 0 | C21: 0 | D21: 0
B22: 1 | C22: 0
B25: Estabilidad
B26: 2 | C26: 1 | D26: 0
B27: =+LINEST(D8:D10,B8:B10^{1,2},1,1) -> -4.116666667e-05 | C27: 0.001385 | D27: 0.06046666667
B28: 0 | C28: 0 | D28: 0
B29: 1 | C29: 0

Sheet RT03-F56
I3: Certificado N° | J3: =+'DATOS 0'!M5 -> 0
A4: Información del Cliente
A6: Solicitante: | D6: =+'DATOS 0'!D5 -> 0
A7: Dirección: | D7: =+'DATOS 0'!D6 -> 0
A8: Ciudad : | D8: =+'DATOS 0'!D7 -> 0
A10: Fecha de recepción: | D10: ='DATOS 0'!D8 -> 00:00:00 | H10: Fecha de calibración: | J10: ='DATOS 0'!D9 -> 00:00:00
A12: 1. INFORMACIÓN DEL EQUIPO SOMETIDO A CALIBRACIÓN
A14: Objeto: | D14: ='DATOS 0'!D13 -> 0
A15: Fabricante: | D15: ='DATOS 0'!D14 -> 0
A16: Número de serie: | D16: =+'DATOS 0'!D16 -> 0
A17: Modelo: | D17: ='DATOS 0'!D15 -> 00:00:00
A18: Intervalo de calibración: | D18: =CONCATENATE('DATOS 0'!L13," ",'DATOS 0'!N13," a"," ",'DATOS 0'!M13," ",'DATOS 0'!N13) -> a
A19: Resolución: | D19: ='DATOS 0'!L14 -> 0 | E19: °C
A21: 2. LUGAR Y DIRECCIÓN DE CALIBRACIÓN
A23: Laboratorio de calibración de temperatura, avenida carrera 50 # 26-55, interior 2 del CAN
A25: 3. CÓDIGO INTERNO | E25: =+'DATOS 0'!M6 -> 0
A27: 4. MÉTODO DE CALIBRACIÓN UTILIZADO
A29: Para la calibración del termómetro digital, se utilizó el método establecido en el documento normativo Guía para aa calibración de termómetros digitales con sensor tipo Prt, termistor y termopar en baños líquidos y hornos de bloque metálico INM/Gtm-T/01. Bogotá, D.C. 2019-12-05 Versión No. 1.
A33: 5. CONDICIONES AMBIENTALES
A35: La calibración se realizó bajo condiciones ambientales de:
A36: Temperatura: | C36: 23 °C ± 5 °C
A37: Humedad Relativa: | C37: 50 % hr ± 20 % hr
I41: Certificado N° | J41: =J3 -> 0
A42: 6. INCERTIDUMBRE DE MEDICIÓN
A44: La incertidumbre expandida de la medición reportada se establece como la incertidumbre estándar de medición multiplicada por el factor de cobertura "k",y la probabilidad de cobertura, la cual debe ser aproximada al 95 % y no menor a este valor" de acuerdo con el documento: "CGM 100:2008. GUM 1995".
A48: 7. TRAZABILIDAD METROLÓGICA
A50: Propiedad de un resultado de medida por la cual el resultado puede relacionarse con una referencia mediante una cadena ininterrumpida y documentada de calibraciones, cada una de las cuales contribuye a la incertidumbre de medida.
A52: Instrumento | D52: Fabricante | E52: No. de serie | G52: Trazabilidad | H52: Fecha de calibración
A53: =+'DATOS 0'!E18 -> Baño Térmico | D53: =+'DATOS 0'!E19 -> Polyscience | E53: =+'DATOS 0'!E20 -> 2110-90004 | G53: =+'DATOS 0'!E23 -> Unión Metrológica | H53: =+'DATOS 0'!E24 -> 2021-12-06
A54: =+'DATOS 0'!E26 -> Termómetro digital | D54: =+'DATOS 0'!E27 -> Lufft | E54: =+'DATOS 0'!E28 -> 022.1014.1212.005 - 347980.004 | G54: =+'DATOS 0'!E31 -> INM | H54: =+'DATOS 0'!E32 -> 2022-02-16
A56: 8. RESULTADOS DE LA CALIBRACIÓN
C58: Valor Nominal | D58: Temperatura del patrón | E58: Lectura promedio IBC | F58: Corrección | G58: Incertidumbre Expandida ± U | H58: Factor de cobertura | I58: Límite de Aceptación LA | J58: Cumple
C59: °C | D59: °C | E59: °C | F59: °C | G59: °C | H59: °C | I59: °C | M59: EMP + | N59: EMP - | P59: LA | Q59: LA
C60: 10 | D60: =+Incertidumbre!E28 -> 9.968142534 | E60: =+Incertidumbre!E35 -> 10.02 | F60: =+Incertidumbre!E41 -> -0.05185746618 | G60: =+Incertidumbre!H41 ->  | H60: =+Incertidumbre!F41 ->  | I60: =+$F$82-G60 ->  | J60: =+IF(ABS(F60)+G60<I60,"SI","NO") ->  | M60: =+$F$82 -> 0.5 | N60: =-M60 -> -0.5 | O60: 0 | P60: =+I60 ->  | Q60: =-P60 -> 
C61: 20 | D61: =+Incertidumbre!E47 -> 20.01143574 | E61: =+Incertidumbre!E54 -> 20.04111111 | F61: =+Incertidumbre!E60 -> -0.02967536923 | G61: =+Incertidumbre!H60 ->  | H61: =+Incertidumbre!F41 ->  | I61: =+$F$82-G61 ->  | J61: =+IF(ABS(F61)+G61<I61,"SI","NO") ->  | M61: 0.5 | N61: =-M61 -> -0.5 | O61: =+($D$61-$D$60)/2+$D$60 -> 14.98978914 | P61: =+I60 ->  | Q61: =-P61 -> 
C62: 40 | D62: =+Incertidumbre!E66 -> 39.93002591 | E62: =+Incertidumbre!E73 -> 40.03 | F62: =+Incertidumbre!E79 -> -0.09997408503 | G62: =+Incertidumbre!H79 ->  | H62: =+Incertidumbre!F79 ->  | I62: =+$F$82-G62 ->  | J62: =+IF(ABS(F62)+G62<I62,"SI","NO") ->  | M62: 0.5 | N62: -0.5 | O62: =+($D$61-$D$60)/2+$D$60 -> 14.98978914 | P62: =+I61 -> 
M63: 0.5 | N63: -0.5 | O63: =+($D$62-$D$61)/2+$D$61 -> 29.97073083 | P63: =+I61 -> 
M64: 0.5 | N64: -0.5 | O64: =+($D$62-$D$61)/2+$D$61 -> 29.97073083 | P64: =+I62 -> 
M65: 0.5 | N65: -0.5 | O65: =+($D$62-$D$61)/2+D62 -> 49.889321 | P65: =+I62 -> 
M66: 0.5 | N66: -0.5 | O66: =+($D$62-$D$61)/2+D62 -> 49.889321 | P66: =+I62 -> 
A80: La declaración de conformidad se aplica teniendo en cuenta el error más la incertidumbre de medición, la cual no deberá superar los errores máximos permitidos (EMP), según xxxxxx
E82: EMP | F82: 0.5 | G82: °C
A89: El riesgo de que los valores aceptados estén fuera del límite de tolerancia es < 2.5% y para los valores rechazados, el riesgo de estar dentro del límite de tolerancia es <2.5%. El EMP está basado en el numeral 7.10.4.1 la resolución 77507-2016.
I93: Certificado N° | J93: =J3 -> 0
A95: 10. OBSERVACIONES
A97: * | B97: Los resultados obtenidos en esta calibración, aplican a la información del equipo descrito en el numeral uno (1) del presente certificado.
A98: * | B98: Los resultados obtenidos en el presente certificado se refieren al momento y condiciones en que se realizaron las mediciones.
A99: * | B99: Los laboratorios de calibración de la Superintendencia de Industria y Comercio no se responsabilizan de los perjuicios que puedan derivarse del uso inadecuado del equipo calibrado.
A100: * | B100: Se adhiere al equipo calibrado una estampilla identificada con el número del certificado.
A101: * | B101: Se realiza medición en 0°C para calcular la histéresis del sensor de temperatura.
A102: * | B102: En el presente certificado se usa la coma “,” como separador decimal.
A103: * | B103: Este certificado de calibración no puede ser reproducido parcial, ni totalmente, excepto con autorización del laboratorio de la Superintendencia de Industria y Comercio.
A104: * | B104: El certificado de calibración sin las firmas autorizadas no es válido.
A105: * | B105: (* IBC) Instrumento bajo Calibración.
A106: * | B106: (* EMP) Error Máximo Permitido.
A107: * | B107: Los resultados de la calibración son trazables al Sistema Internacional (SI).
A110: FIRMAS AUTORIZADAS:
I112: SC
A114: LH | B114: Firma Autorizada | H114: Calibrado por
B115: =VLOOKUP($F113,'DATOS 0'!C64:L73,2,FALSE) ->  | H115: =VLOOKUP($L113,'DATOS 0'!C64:P73,2,FALSE) -> 
B116: =VLOOKUP($F113,'DATOS 0'!C64:L73,7,FALSE) ->  | H116: =VLOOKUP($L113,'DATOS 0'!C64:P73,11,FALSE) -> 
B119: Fecha de elaboración: | I119: Fecha de emisión:
A121: …………………..Fin de este documento………………………

Sheet RT03-F57 (hidden)
I3: Certificado N° | J3: =+'DATOS 0'!M5 -> 0
A4: Información del Cliente
A6: Solicitante: | D6: =+'DATOS 0'!D5 -> 0
A7: Dirección: | D7: =+'DATOS 0'!D6 -> 0
A8: Ciudad : | D8: =+'DATOS 0'!D7 -> 0
A10: Fecha de recepción: | D10: ='DATOS 0'!D8 -> 00:00:00 | H10: Fecha de calibración: | J10: ='DATOS 0'!D9 -> 00:00:00
A12: 1. INFORMACIÓN DEL EQUIPO SOMETIDO A CALIBRACIÓN
A14: Objeto: | D14: ='DATOS 0'!D13 -> 0
A15: Fabricante: | D15: ='DATOS 0'!D14 -> 0
A16: Número de serie: | D16: =+'DATOS 0'!D16 -> 0
A17: Modelo: | D17: ='DATOS 0'!D15 -> 00:00:00
A18: Intervalo de calibración: | D18: =CONCATENATE('DATOS 0'!L13," ",'DATOS 0'!N13," a"," ",'DATOS 0'!M13," ",'DATOS 0'!N13) -> a
A19: Resolución: | D19: ='DATOS 0'!L14 -> 0 | E19: °C
A21: 2. LUGAR Y DIRECCIÓN DE CALIBRACIÓN
A23: Laboratorio de calibración de temperatura, avenida carrera 50 # 26-55, interior 2 del CAN
A25: 3. CÓDIGO INTERNO | E25: =+'DATOS 0'!M6 -> 0
A27: 4. MÉTODO DE CALIBRACIÓN UTILIZADO
A29: Para la calibración del termómetro digital, se utilizó el método establecido en el documento normativo Guía para aa calibración de termómetros digitales con sensor tipo Prt, termistor y termopar en baños líquidos y hornos de bloque metálico INM/Gtm-T/01. Bogotá, D.C. 2019-12-05 Versión No. 1.
A33: 5. CONDICIONES AMBIENTALES
A35: La calibración se realizó bajo condiciones ambientales de:
A36: Temperatura: | C36: 23 °C ± 5 °C
A37: Humedad Relativa: | C37: 50 % hr ± 20 % hr
I41: Certificado N° | J41: =J3 -> 0
A42: 6. INCERTIDUMBRE DE MEDICIÓN
A44: La incertidumbre expandida de la medición reportada se establece como la incertidumbre estándar de medición multiplicada por el factor de cobertura "k",y la probabilidad de cobertura, la cual debe ser aproximada al 95 % y no menor a este valor" de acuerdo con el documento: "CGM 100:2008. GUM 1995".
A48: 7. TRAZABILIDAD METROLÓGICA
A50: Propiedad de un resultado de medida por la cual el resultado puede relacionarse con una referencia mediante una cadena ininterrumpida y documentada de calibraciones, cada una de las cuales contribuye a la incertidumbre de medida.
A52: Instrumento | D52: Fabricante | E52: No. de serie | G52: Trazabilidad | H52: Fecha de calibración
A53: =+'DATOS 0'!E18 -> Baño Térmico | D53: =+'DATOS 0'!E19 -> Polyscience | E53: =+'DATOS 0'!E20 -> 2110-90004 | G53: =+'DATOS 0'!E23 -> Unión Metrológica | H53: =+'DATOS 0'!E24 -> 2021-12-06
A54: =+'DATOS 0'!E26 -> Termómetro digital | D54: =+'DATOS 0'!E27 -> Lufft | E54: =+'DATOS 0'!E28 -> 022.1014.1212.005 - 347980.004 | G54: =+'DATOS 0'!E31 -> INM | H54: =+'DATOS 0'!E32 -> 2022-02-16
A56: 8. RESULTADOS DE LA CALIBRACIÓN
C58: Valor Nominal | D58: Temperatura del patrón | E58: Lectura promedio IBC | F58: Corrección | G58: Incertidumbre Expandida ± U | H58: Factor de cobertura | I58: Límite de Aceptación LA | J58: Cumple
C59: °C | D59: °C | E59: °C | F59: °C | G59: °C | H59: °C | I59: °C | M59: EMP + | N59: EMP - | P59: LA | Q59: LA
C60: 10 | D60: =+Incertidumbre!E28 -> 9.968142534 | E60: =+Incertidumbre!E35 -> 10.02 | F60: =+Incertidumbre!E41 -> -0.05185746618 | G60: =+Incertidumbre!H41 ->  | H60: =+Incertidumbre!F41 ->  | I60: =+$F$82-G60 ->  | J60: =+IF(ABS(F60)+G60<I60,"SI","NO") ->  | M60: =+$F$82 -> 0.5 | N60: =-M60 -> -0.5 | O60: 0 | P60: =+I60 ->  | Q60: =-P60 -> 
C61: 20 | D61: =+Incertidumbre!E47 -> 20.01143574 | E61: =+Incertidumbre!E54 -> 20.04111111 | F61: =+Incertidumbre!E60 -> -0.02967536923 | G61: =+Incertidumbre!H60 ->  | H61: =+Incertidumbre!F41 ->  | I61: =+$F$82-G61 ->  | J61: =+IF(ABS(F61)+G61<I61,"SI","NO") ->  | M61: 0.5 | N61: =-M61 -> -0.5 | O61: =+($D$61-$D$60)/2+$D$60 -> 14.98978914 | P61: =+I60 ->  | Q61: =-P61 -> 
C62: 40 | D62: =+Incertidumbre!E66 -> 39.93002591 | E62: =+Incertidumbre!E73 -> 40.03 | F62: =+Incertidumbre!E79 -> -0.09997408503 | G62: =+Incertidumbre!H79 ->  | H62: =+Incertidumbre!F79 ->  | I62: =+$F$82-G62 ->  | J62: =+IF(ABS(F62)+G62<I62,"SI","NO") ->  | M62: 0.5 | N62: -0.5 | O62: =+($D$61-$D$60)/2+$D$60 -> 14.98978914 | P62: =+I61 -> 
M63: 0.5 | N63: -0.5 | O63: =+($D$62-$D$61)/2+$D$61 -> 29.97073083 | P63: =+I61 -> 
M64: 0.5 | N64: -0.5 | O64: =+($D$62-$D$61)/2+$D$61 -> 29.97073083 | P64: =+I62 -> 
M65: 0.5 | N65: -0.5 | O65: =+($D$62-$D$61)/2+D62 -> 49.889321 | P65: =+I62 -> 
M66: 0.5 | N66: -0.5 | O66: =+($D$62-$D$61)/2+D62 -> 49.889321 | P66: =+I62 -> 
A80: La declaración de conformidad se aplica teniendo en cuenta el error más la incertidumbre de medición, la cual no deberá superar los errores máximos permitidos (EMP), según xxxxxx
E82: EMP | F82: 0.5 | G82: °C
A89: El riesgo de que los valores aceptados estén fuera del límite de tolerancia es < 2.5% y para los valores rechazados, el riesgo de estar dentro del límite de tolerancia es <2.5%. El EMP está basado en el numeral 7.10.4.1 la resolución 77507-2016.
I93: Certificado N° | J93: =J3 -> 0
A95: 10. OBSERVACIONES
A97: * | B97: Los resultados obtenidos en esta calibración, aplican a la información del equipo descrito en el numeral uno (1) del presente certificado.
A98: * | B98: Los resultados obtenidos en el presente certificado se refieren al momento y condiciones en que se realizaron las mediciones.
A99: * | B99: Los laboratorios de calibración de la Superintendencia de Industria y Comercio no se responsabilizan de los perjuicios que puedan derivarse del uso inadecuado del equipo calibrado.
A100: * | B100: Se adhiere al equipo calibrado una estampilla identificada con el número del certificado.
A101: * | B101: Se realiza medición en 0°C para calcular la histéresis del sensor de temperatura.
A102: * | B102: En el presente certificado se usa la coma “,” como separador decimal.
A103: * | B103: Este certificado de calibración no puede ser reproducido parcial, ni totalmente, excepto con autorización del laboratorio de la Superintendencia de Industria y Comercio.
A104: * | B104: El certificado de calibración sin las firmas autorizadas no es válido.
A105: * | B105: (* IBC) Instrumento bajo Calibración.
A106: * | B106: (* EMP) Error Máximo Permitido.
A107: * | B107: Los resultados de la calibración son trazables al Sistema Internacional (SI).
A110: FIRMAS AUTORIZADAS:
I112: SC
A114: LH | B114: Firma Autorizada | H114: Calibrado por
B115: =VLOOKUP($F113,'DATOS 0'!C64:L73,2,FALSE) ->  | H115: =VLOOKUP($L113,'DATOS 0'!C64:P73,2,FALSE) -> 
B116: =VLOOKUP($F113,'DATOS 0'!C64:L73,7,FALSE) ->  | H116: =VLOOKUP($L113,'DATOS 0'!C64:P73,11,FALSE) -> 
B119: Fecha de elaboración: | I119: Fecha de emisión:
A121: …………………..Fin de este documento………………………

Sheet RT03-F64 (hidden)
G3: Informe N° | I3: =+'DATOS 0'!M5 -> 0
A4: Información del Cliente
A6: Solicitante: | D6: =+'DATOS 0'!D5 -> 0
A7: Dirección: | D7: =+'DATOS 0'!D6 -> 0
A8: Ciudad : | D8: =+'DATOS 0'!D7 -> 0
A10: Fecha de recepción: | D10: ='DATOS 0'!D8 -> 00:00:00
A12: 1. INFORMACIÓN DEL EQUIPO
A14: Objeto: | D14: =+'DATOS 0'!D13 -> 0
A15: Fabricante: | D15: =+'DATOS 0'!D14 -> 0
A16: Número de serie: | D16: =+'DATOS 0'!D16 -> 0
A17: Modelo: | D17: =+'DATOS 0'!D15 -> 00:00:00
A18: Intervalo de calibración: | D18: =CONCATENATE('DATOS 0'!L13," ",'DATOS 0'!N13," a"," ",'DATOS 0'!M13," ",'DATOS 0'!N13) -> a
A19: Resolución: | D19: =+'DATOS 0'!L14 -> 0 | E19: °C
A21: 2. LUGAR Y DIRECCIÓN
A23: Laboratorio de calibración de temperatura, avenida carrera 50 # 26-55, interior 2 del CAN
A25: 3. CÓDIGO INTERNO | E25: =+'DATOS 0'!M6 -> 0
G41: Informe N° | I41: =I3 -> 0
A42: 4. REGISTRO FOTOGRÁFICO
G89: Informe N° | I89: =I3 -> 0
A91: 5. OBSERVACIONES
A105: FIRMAS AUTORIZADAS:
I107: SC
A109: LH | B109: Autorizado por | G109: Elaborado por
B110: =VLOOKUP($F108,'DATOS 0'!C64:P73,2,FALSE) ->  | G110: =VLOOKUP($J108,'DATOS 0'!C64:P73,2,FALSE) -> 
B111: =VLOOKUP($F108,'DATOS 0'!C64:P73,7,FALSE) ->  | G111: =VLOOKUP($J108,'DATOS 0'!C64:P73,11,FALSE) -> 
B114: Fecha de elaboración: | D114: 2021-06-21 | G114: Fecha de emisión: | I114: 2021-06-21
A116: …………………..Fin de este documento………………………

Sheet EJEMPLO (hidden)
A1: PIE DE REY | B1: 150 | C1: mm
A2: Resolución | B2: 0.01 | C2: mm
A3: Estabilidad | B3: 2 | C3: °C | E3: Longitud Nominal | G3: 0 | H3: 10 | I3: 30 | J3: 50 | K3: 70 | L3: 90 | M3: 110 | N3: 130 | O3: 150
E4: Longitud Bloque patrón | G4: 0 | H4: 10 | I4: 30 | J4: 50 | K4: 70 | L4: 90 | M4: 110 | N4: 130 | O4: 150
A5: Bloques patrón | B5: V nominal | C5: U K=2 | E5: Lectura IBC 1 | G5: 0 | H5: 9.99 | I5: 29.97 | J5: 50.02 | K5: 70 | L5: 89.98 | M5: 109.99 | N5: 129.99 | O5: 149.99
B6: mm | C6: μm | E6: Lectura IBC 2 | G6: 0.01 | H6: 9.98 | I6: 29.99 | J6: 49.99 | K6: 70.02 | L6: 89.97 | M6: 110 | N6: 129.99 | O6: 149.98
A7: Bloque 1 | B7: 10 | C7: =((0.1/1000+0.000001*B7))*1000 -> 0.11 | E7: Lectura IBC 3 | J7: 49.98 | N7: 129.95
A8: Bloque 2 | B8: 30 | C8: 0.13 | E8: Lectura IBC 4 | J8: 49.96 | N8: 129.99
A9: Bloque 3 | B9: 50 | C9: 0.15 | E9: Lectura IBC 5 | J9: 50.01 | N9: 129.98
A10: Bloque 4 | B10: 70 | C10: 0.17 | E10: Lectura IBC 6 | J10: 50.01 | N10: 129.98
A11: Bloque 5 | B11: 90 | C11: 0.19 | E11: Lectura IBC 7 | J11: 50.01 | N11: 129.96
A12: Bloque 6 | B12: 110 | C12: 0.21 | E12: Lectura IBC 8 | J12: 50.04 | N12: 129.97
A13: Bloque 7 | B13: 130 | C13: 0.23 | E13: Lectura IBC 9 | J13: 50.02 | N13: 129.99
A14: Bloque 8 | B14: 150 | C14: =((0.1/1000+0.000001*B14))*1000 -> 0.25 | E14: Lectura IBC 10 | J14: 50.01 | N14: 130
A15: Deriva | C15: 0.125 | E15: Promedio mm | G15: =AVERAGE(G5:G6) -> 0.005 | H15: =AVERAGE(H5:H6) -> 9.985 | I15: 29.98 | J15: =AVERAGE(J5:J14) -> 50.005 | K15: 70.01 | L15: 89.975 | M15: 109.995 | N15: =AVERAGE(N5:N14) -> 129.98 | O15: 149.985
E16: Desviación estandar (μm) | G16: =_xlfn.STDEV.S(G5:G6)*1000 -> 7.071067812 | H16: =_xlfn.STDEV.S(H5:H6)*1000 -> 7.071067812 | I16: 14.14213562 | J16: =_xlfn.STDEV.S(J5:J14)*1000 -> 22.73030283 | K16: 14.14213562 | L16: 7.071067812 | M16: 7.071067812 | N16: =_xlfn.STDEV.S(N5:N14)*1000 -> 15.6347192 | O16: 7.071067812
A17: Termómetro | E17: Error Promedio (μm) | G17: =(G15-G4)*1000 -> 5 | H17: =(H15-H4)*1000 -> -15 | I17: -20 | J17: 5 | K17: 10 | L17: -25 | M17: -5 | N17: -20 | O17: -15
A18: Resolución | B18: 0.5 | C18: °C
A19: U K=2 | B19: 1 | C19: °C | L19: 20
A20: Deriva | B20: 0.25 | C20: °C | E20: Coeficiente de dilatación | L20: 22
F21: Estimado | G21: U
A22: Planitud | B22: 5 | C22: μm | E22: ͞α Bloque | F22: 1.15e-05 | G22: 1e-06 | H22: °C-1
A23: Paralelismo | B23: 10 | C23: μm | E23: ͞α Pie de rey | F23: 1.15e-05 | G23: 1e-06 | H23: °C-1
A24: H | B24: 30 | C24: mm | E24: u ͞α total | G24: =SQRT(SUMSQ((G22/SQRT(3)),(G23/SQRT(3)))) -> 8.164965809e-07 | H24: °C-1 | L24: Modelo del coeficiente de dilatación
A25: res | B25: 0.01 | C25: mm
A26: β | B26: =ATAN(B25/B24) -> 0.000333333321 | C26: rad | E26: Variación de temperatura
A27: Abbe | B27: =(B26*B24)*1000 -> 9.99999963 | C27: μm | E27: Estimado | H27: U
H28: Res | I28: =B18 -> 0.5 | J28: °C
E29: Δt | F29: 2 | G29: °C | H29: Der | I29: =B20 -> 0.25 | J29: °C
H30: Cal | I30: =B19 -> 1 | J30: °C
A32: Unidad | C32: Estimado | D32: Incertidumbre estandar | F32: Tipo de u | G32: Distribución | H32: Ci | I32: Ci*u | J32: Unidad
A33: μm | B33: u rep | C33: =MAX(G16:O16) -> 22.73030283 | D33: s/√n | E33: =C33/SQRT(10) -> 7.187952884 | F33: Tipo A | G33: Normal | H33: 1 | I33: =E33*H33 -> 7.187952884 | J33: μm
A34: μm | B34: u Patron | C34: =C14 -> 0.25 | D34: U / k | E34: =C34/2 -> 0.125 | F34: Tipo B | G34: Normal | H34: 1 | I34: =E34*H34 -> 0.125 | J34: μm
A35: μm | B35: u Deriva | C35: =C15 -> 0.125 | D35: Der / 2√3 | E35: =C35/(2*SQRT(3)) -> 0.03608439182 | F35: Tipo B | G35: Rectangular | H35: 1 | I35: =E35*H35 -> 0.03608439182 | J35: μm | L35: 150 | M35: 100 | N35: 101.05 | O35: =N35-M35 -> 1.05 | P35: 0.0056
A36: μm | B36: u Pla | C36: =B22 -> 5 | D36: Tem / 2√3 | E36: =C36/(SQRT(6)) -> 2.041241452 | F36: Tipo B | G36: Rectangular | H36: 1 | I36: 2.041241452 | J36: μm
A37: μm | B37: u Par | C37: =B23 -> 10 | D37: Res / 2√3 | E37: =C37/(2*SQRT(3)) -> 2.886751346 | F37: Tipo B | G37: Rectangular | H37: 1 | I37: 2.886751346 | J37: μm
A38: μm | B38: u Abbe | C38: =B27 -> 9.99999963 | D38: His / 2√3 | E38: =C38/(2*SQRT(3)) -> 2.886751239 | F38: Tipo B | G38: Rectangular | H38: 1 | I38: 2.886751239 | J38: μm
A39: μm | B39: u res | C39: =B2*1000 -> 10 | D39: Tem / 2√3 | E39: =C39/(2*SQRT(3)) -> 2.886751346 | F39: Tipo B | G39: Rectangular | H39: 1 | I39: 2.886751346 | J39: μm
A40: °C-1 | B40: u ͞α | E40: 8.2e-07 | F40: Tipo B | G40: Rectangular | H40: L Δt | I40: =(E40*B1*B3)*1000 -> 0.246 | J40: μm
A41: °C | B41: u Δt | C41: 2 | D41: ρf / √3 | E41: =C41/SQRT(3) -> 1.154700538 | F41: Tipo B | G41: Rectangular
A42: °C | B42: Cal | C42: =I30 -> 1 | D42: U / k | E42: =C42/2 -> 0.5 | F42: Tipo B | G42: Normal
A43: °C | B43: Res | C43: =I28 -> 0.5 | D43: Res / 2√3 | E43: =C43/SQRT(12) -> 0.1443375673 | F43: Tipo B | G43: Rectangular
A44: °C | B44: Der | C44: =I29 -> 0.25 | D44: Der / 2√3 | E44: =C44/SQRT(12) -> 0.07216878365 | F44: Tipo B | G44: Rectangular
A45: °C | B45: u Δt | E45: =SQRT(SUMSQ(E41:E44)) -> 1.268611446 | F45: Tipo B | G45: Rectangular | H45: L͞α | I45: =(E45*B1*F22)*1000 -> 2.188354744 | J45: μm
H46: uc | I46: =SQRT(SUMSQ(I33:I40,I45)) -> 9.257411749 | J46: μm
H47: veff | I47: =I46^4/((I33^4/10)+(I34^4/200)+(I35^4/200)+(I36^4/200)+(I37^4/200)+(I38^4/200)+(I39^4/200)+(I40^4/200)+(I45^4/200)) -> 27.38543365 | J47: μm
H48: k | I48: =TINV((100%-95.45%),I47) -> 2.096945116 | J48: μm
H49: Uexp | I49: =I48*I46 -> 19.41228436 | J49: μm

Sheet DATOS ANTERIORES DE PATRONES (hidden)
A2: 1 | B2: Instrumento: | D2: Bloques patrón | F2: 1 | G2: Instrumento: | I2: Bloques patrón | K2: 1 | L2: Instrumento: | O2: Bloques escalonados | R2: Instrumento: | T2: Bloques patrón
A3: 2 | B3: Marca: | D3: MOORE & WRIGHT | F3: 2 | G3: Marca: | H3: Marca: | I3: MOORE & WRIGHT | K3: 2 | L3: Marca: | M3: Marca: | O3: MITUTOYO | R3: Marca: | S3: Marca: | T3: MITUTOYO
A4: 3 | B4: Grado: | D4: 0 | F4: 3 | G4: Grado | H4: Modelo: | I4: 0 | K4: 3 | L4: Grado | M4: Modelo: | O4: No Aplica | R4: Grado | S4: Modelo: | T4: 1
A5: 4 | B5: Rango: | D5: 0,5 mm a 100 mm | F5: 4 | G5: Rango: | H5: Rango: | I5: 0,5 mm a 100 mm | K5: 4 | L5: Rango: | M5: Rango: | O5: 0 mm a 600 mm | R5: Rango: | S5: Rango: | T5: 0,1 in a 6 in | Y5: Serie | Z5: Marca | AA5: Grado | AB5: Rango | AC5: Certificado | AD5: Fecha Cal | AE5: Prox. Cal | AF5: Equipo
A6: 5 | B6: Serie: | D6: 110108 / CS-JBP-002 | F6: 5 | G6: Serie: | H6: Serie: | I6: 090130 / CS-JBP-005 | K6: 5 | L6: Serie: | M6: Serie: | O6: 800014 | R6: Serie: | S6: Serie: | T6: 080167 / 1304410 | Y6: 110108 / CS-JBP-002 | Z6: =D3 -> MOORE & WRIGHT | AA6: =D4 -> 0 | AB6: =D5 -> 0,5 mm a 100 mm | AC6: =D7 -> LMD-151424 | AD6: =D8 -> Junio 22 de 2015 | AE6: =D9 -> Junio 22 de 2020 | AF6: Bloques patrón
A7: 6 | B7: Certificado No: | D7: LMD-151424 | F7: 6 | G7: Certificado No: | H7: Certificado No: | I7: LMD-142362 | K7: 6 | L7: Certificado No: | M7: Certificado No: | O7: 20694 | R7: Certificado No: | S7: Certificado No: | T7: LMD-151427 / LMD-151381 | Y7: 160203 / CS-JBP-008 | Z7: =P105 -> SWT | AA7: =P106 -> 1 | AB7: =P107 -> 125 mm a 500 mm | AC7: =P109 -> LMD170789 | AD7: =P110 -> Abril 28 de 2017 | AE7: =P111 -> Abril 28 de 2018 | AF7: Bloques patrón
A8: 7 | B8: Fecha de calibración: | D8: Junio 22 de 2015 | F8: 7 | G8: Fecha de calibración: | H8: Fecha de calibración: | I8: Septiembre 04 de 2014 | K8: 7 | L8: Fecha de calibración: | M8: Fecha de calibración: | O8: 40675 | R8: Fecha de calibración: | S8: Fecha de calibración: | T8: 2015-06-17 / 2015-06-24 | Y8: 080167 / 1304410 | Z8: =T3 -> MITUTOYO | AA8: =T4 -> 1 | AB8: =T5 -> 0,1 in a 6 in | AC8: =T7 -> LMD-151427 / LMD-151381 | AD8: =T8 -> 2015-06-17 / 2015-06-24 | AE8: =T9 -> 2018-06-17 / 2018-06-24 | AF8: Bloques patrón
A9: 8 | B9: Próxima calibración: | D9: Junio 22 de 2020 | F9: 8 | G9: Próxima calibración: | H9: Próxima calibración: | I9: Septiembre 04 de 2017 | K9: 8 | L9: Próxima calibración: | M9: Próxima calibración: | R9: Próxima calibración: | S9: Próxima calibración: | T9: 2018-06-17 / 2018-06-24 | Y9: 0800014 / CH-CCH-001 (Ext) | Z9: =$O$3 -> MITUTOYO | AA9: =$O$4 -> No Aplica | AB9: =$O$5 -> 0 mm a 600 mm | AC9: =$O$7 -> 20694 | AD9: =$O$8 -> 40675 | AE9: =$O$9 -> 0 | AF9: Bloques escalonados
Y10: 0800014 / CH-CCH-001 (Int) | Z10: =$O$3 -> MITUTOYO | AA10: =$O$4 -> No Aplica | AB10: =$O$5 -> 0 mm a 600 mm | AC10: =$O$7 -> 20694 | AD10: =$O$8 -> 40675 | AE10: =$O$9 -> 0 | AF10: Bloques escalonados
Y11: =I6 -> 090130 / CS-JBP-005 | Z11: =I3 -> MOORE & WRIGHT | AA11: =I4 -> 0 | AB11: =I5 -> 0,5 mm a 100 mm | AC11: =I7 -> LMD-142362 | AD11: =I8 -> Septiembre 04 de 2014 | AE11: =I9 -> Septiembre 04 de 2017 | AF11: Bloques patrón
Y12: No aplica
B13: Valor nominal | C13: Desviación de longitud en el punto central respecto al valor nominal, | D13: Variación en longitud | E13: U | F13: DERIVA | G13: Valor Nominal | H13: Desviación de longitud en el punto central respecto al valor nominal, | I13: Variación en longitud | J13: U | K13: DERIVA | L13: Valor Nominal | M13: Desviación de longitud en el punto central respecto al valor nominal, | O13: U | P13: DERIVA | R13: Valor Nominal | S13: Desviación de longitud en el punto central respecto al valor nominal, | T13: Variación en longitud | U13: U | V13: DERIVA
B16: mm | C16: µm | D16: µm | E16: µm | F16: µm | G16: mm | H16: µm | I16: µm | J16: µm | K16: µm | L16: mm | M16: µm | O16: µm | P16: µm | R16: in | S16: µm | T16: µm | U16: µm | V16: µm
B17: 0.5 | C17: -0.03 | D17: 0.02 | E17: 0.024 | F17: 0.02 | G17: 0.5 | H17: 0.02 | I17: 0.06 | J17: 0.03 | K17: 0.01 | L17: 0 | M17: -2.1 | O17: 4 | P17: 2.1 | R17: 0.1 | S17: 0 | T17: 0.02 | U17: 0.024 | V17: =((R17*$W$102)+$L$112)*1000 -> 0.001968505906
B18: 1 | C18: -0.05 | D18: 0.05 | E18: 0.024 | F18: 0.04 | G18: 1 | H18: 0.04 | I18: 0.03 | J18: 0.03 | K18: 0.03 | L18: 20 | M18: -2.1 | O18: 4 | P18: 2.2 | R18: 0.10005 | S18: 0.03 | T18: 0.04 | U18: 0.024 | V18: 0.001968505906
B19: 1.001 | C19: 0.05 | D19: 0.02 | E19: 0.024 | F19: 0.01 | G19: 1.001 | H19: 0.03 | I19: 0.05 | J19: 0.03 | K19: 0.01 | L19: 50 | M19: -1.8 | O19: 4 | P19: 1.9 | R19: 0.1001 | S19: 0.01 | T19: 0.01 | U19: 0.024 | V19: 0.001968505907
B20: 1.002 | C20: -0.06 | D20: 0.03 | E20: 0.024 | F20: 0.02 | G20: 1.002 | H20: 0 | I20: 0.02 | J20: 0.03 | K20: 0.04 | L20: 100 | M20: 0 | O20: 4 | P20: 0.2 | R20: 0.1002 | S20: -0.03 | T20: 0.05 | U20: 0.024 | V20: 0.001968505909
B21: 1.003 | C21: 0.04 | D21: 0.03 | E21: 0.024 | F21: 0.06 | G21: 1.003 | H21: -0.03 | I21: 0.03 | J21: 0.03 | K21: 0.01 | L21: 150 | M21: 2.3 | O21: 4 | P21: 2.2 | R21: 0.1003 | S21: -0.03 | T21: 0.03 | U21: 0.024 | V21: 0.001968505911
B22: 1.004 | C22: -0.03 | D22: 0.02 | E22: 0.024 | F22: 0.01 | G22: 1.004 | H22: -0.07 | I22: 0.02 | J22: 0.03 | K22: 0.05 | L22: 250 | M22: 2.6 | O22: 4 | P22: 2.1 | R22: 0.1004 | S22: 0.02 | T22: 0.03 | U22: 0.024 | V22: 0.001968505913
B23: 1.005 | C23: -0.03 | D23: 0.02 | E23: 0.024 | F23: 0.02 | G23: 1.005 | H23: 0.05 | I23: 0.01 | J23: 0.03 | K23: 0.04 | L23: 350 | M23: 1.7 | O23: 4 | P23: 1.8 | R23: 0.1005 | S23: -0.03 | T23: 0.05 | U23: 0.024 | V23: 0.001968505915
B24: 1.006 | C24: -0.02 | D24: 0.03 | E24: 0.024 | F24: 0.03 | G24: 1.006 | H24: 0.08 | I24: 0.03 | J24: 0.03 | K24: 0.07 | L24: 450 | M24: 0.9 | O24: 4 | P24: 0.5 | R24: 0.1006 | S24: 0.01 | T24: 0.03 | U24: 0.024 | V24: 0.001968505917
B25: 1.007 | C25: -0.05 | D25: 0.04 | E25: 0.024 | F25: 0.06 | G25: 1.007 | H25: 0.02 | I25: 0.03 | J25: 0.03 | K25: 0.01 | L25: 500 | M25: -1 | O25: 4 | P25: 1.2 | R25: 0.1007 | S25: -0.06 | T25: 0.01 | U25: 0.024 | V25: 0.001968505919
B26: 1.008 | C26: -0.06 | D26: 0.03 | E26: 0.024 | F26: 0.03 | G26: 1.008 | H26: 0.07 | I26: 0.03 | J26: 0.03 | K26: 0.04 | L26: 550 | M26: -1 | O26: 4 | P26: 1.2 | R26: 0.1008 | S26: 0.01 | T26: 0.03 | U26: 0.024 | V26: 0.001968505921
B27: 1.009 | C27: 0.02 | D27: 0.03 | E27: 0.024 | F27: 0 | G27: 1.009 | H27: -0.01 | I27: 0.01 | J27: 0.03 | K27: 0.01 | L27: 600 | M27: -1.3 | O27: 4 | P27: 1.9 | R27: 0.1009 | S27: 0.02 | T27: 0.05 | U27: 0.024 | V27: 0.001968505923
B28: 1.01 | C28: -0.02 | D28: 0.04 | E28: 0.024 | F28: 0.02 | G28: 1.01 | H28: 0.03 | I28: 0.03 | J28: 0.03 | K28: 0.03 | L28: 0 | M28: 0.6 | O28: 4 | P28: 0.6 | R28: 0.101 | S28: 0.04 | T28: 0.05 | U28: 0.024 | V28: 0.001968505925
B29: 1.02 | C29: 0.04 | D29: 0.02 | E29: 0.024 | F29: 0.02 | G29: 1.02 | H29: 0.05 | I29: 0.02 | J29: 0.03 | K29: 0.03 | L29: 20 | M29: -0.3 | O29: 4 | P29: 0.2 | R29: 0.102 | S29: -0.01 | T29: 0.03 | U29: 0.024 | V29: 0.001968505945
B30: 1.03 | C30: -0.02 | D30: 0.05 | E30: 0.024 | F30: 0.02 | G30: 1.03 | H30: 0 | I30: 0.02 | J30: 0.03 | K30: 0 | L30: 50 | M30: -0.7 | O30: 4 | P30: 1.5 | R30: 0.103 | S30: 0.01 | T30: 0.02 | U30: 0.024 | V30: 0.001968505965
B31: 1.04 | C31: -0.06 | D31: 0.03 | E31: 0.024 | F31: 0.05 | G31: 1.04 | H31: 0.07 | I31: 0.03 | J31: 0.03 | K31: 0.06 | L31: 100 | M31: 0.7 | O31: 4 | P31: 0.3 | R31: 0.104 | S31: -0.06 | T31: 0.03 | U31: 0.024 | V31: 0.001968505984
B32: 1.05 | C32: -0.03 | D32: 0.04 | E32: 0.024 | F32: 0.04 | G32: 1.05 | H32: 0.02 | I32: 0.02 | J32: 0.03 | K32: 0.01 | L32: 150 | M32: 0.7 | O32: 4 | P32: 0.4 | R32: 0.105 | S32: -0.05 | T32: 0.05 | U32: 0.024 | V32: 0.001968506004
B33: 1.06 | C33: -0.02 | D33: 0.04 | E33: 0.024 | F33: 0.02 | G33: 1.06 | H33: 0.02 | I33: 0.02 | J33: 0.03 | K33: 0.02 | L33: 250 | M33: 0.8 | O33: 4 | P33: 0.3 | R33: 0.106 | S33: -0.01 | T33: 0.06 | U33: 0.024 | V33: 0.001968506024
B34: 1.07 | C34: 0.01 | D34: 0.05 | E34: 0.024 | F34: 0.01 | G34: 1.07 | H34: 0 | I34: 0.04 | J34: 0.03 | K34: 0.02 | L34: 350 | M34: -0.5 | O34: 4 | P34: 0.5 | R34: 0.107 | S34: -0.05 | T34: 0.04 | U34: 0.024 | V34: 0.001968506043
B35: 1.08 | C35: -0.02 | D35: 0.03 | E35: 0.024 | F35: 0.08 | G35: 1.08 | H35: 0.02 | I35: 0.02 | J35: 0.03 | K35: 0.04 | L35: 450 | M35: -0.7 | O35: 4 | P35: 1.3 | R35: 0.108 | S35: -0.06 | T35: 0.03 | U35: 0.024 | V35: 0.001968506063
B36: 1.09 | C36: -0.02 | D36: 0.03 | E36: 0.024 | F36: 0.04 | G36: 1.09 | H36: 0.03 | I36: 0.03 | J36: 0.03 | K36: 0.01 | L36: 500 | M36: -0.2 | O36: 4 | P36: 0.5 | R36: 0.109 | S36: 0.03 | T36: 0.04 | U36: 0.024 | V36: 0.001968506083
B37: 1.1 | C37: 0.03 | D37: 0.04 | E37: 0.024 | F37: 0.01 | G37: 1.1 | H37: 0 | I37: 0.01 | J37: 0.03 | K37: 0.02 | L37: 550 | M37: -0.5 | O37: 4 | P37: 0.9 | R37: 0.11 | S37: -0.04 | T37: 0.05 | U37: 0.024 | V37: 0.001968506102
B38: 1.11 | C38: 0 | D38: 0.02 | E38: 0.024 | F38: 0.01 | G38: 1.11 | H38: 0.02 | I38: 0.03 | J38: 0.03 | K38: 0.01 | L38: 600 | M38: -0.2 | O38: 4 | P38: 0.5 | R38: 0.12 | S38: -0.04 | T38: 0.06 | U38: 0.024 | V38: 0.001968506299
B39: 1.12 | C39: -0.03 | D39: 0.04 | E39: 0.024 | F39: 0.03 | G39: 1.12 | H39: 0.01 | I39: 0.04 | J39: 0.03 | K39: 0.01 | R39: 0.13 | S39: -0.05 | T39: 0.04 | U39: 0.024 | V39: 0.001968506496
B40: 1.13 | C40: -0.06 | D40: 0.04 | E40: 0.024 | F40: 0.04 | G40: 1.13 | H40: 0.02 | I40: 0.02 | J40: 0.03 | K40: 0 | R40: 0.14 | S40: -0.02 | T40: 0.03 | U40: 0.024 | V40: 0.001968506693
B41: 1.14 | C41: -0.02 | D41: 0.04 | E41: 0.024 | F41: 0.02 | G41: 1.14 | H41: 0.01 | I41: 0.04 | J41: 0.03 | K41: 0.01 | R41: 0.15 | S41: 0.02 | T41: 0.01 | U41: 0.024 | V41: 0.00196850689
B42: 1.15 | C42: 0.05 | D42: 0.04 | E42: 0.024 | F42: 0.01 | G42: 1.15 | H42: 0 | I42: 0.05 | J42: 0.03 | K42: 0.04 | R42: 0.16 | S42: 0.06 | T42: 0.06 | U42: 0.024 | V42: 0.001968507087
B43: 1.16 | C43: -0.01 | D43: 0.03 | E43: 0.024 | F43: 0.02 | G43: 1.16 | H43: 0 | I43: 0.03 | J43: 0.03 | K43: 0.03 | R43: 0.17 | S43: 0.03 | T43: 0.05 | U43: 0.024 | V43: 0.001968507283
B44: 1.17 | C44: -0.03 | D44: 0.04 | E44: 0.024 | F44: 0.01 | G44: 1.17 | H44: 0.02 | I44: 0.03 | J44: 0.03 | K44: 0 | R44: 0.18 | S44: 0.04 | T44: 0.06 | U44: 0.024 | V44: 0.00196850748
B45: 1.18 | C45: 0 | D45: 0.01 | E45: 0.024 | F45: 0.03 | G45: 1.18 | H45: -0.01 | I45: 0.05 | J45: 0.03 | K45: 0.02 | R45: 0.19 | S45: -0.04 | T45: 0.06 | U45: 0.024 | V45: 0.001968507677
B46: 1.19 | C46: 0 | D46: 0.05 | E46: 0.024 | F46: 0.01 | G46: 1.19 | H46: 0 | I46: 0.02 | J46: 0.03 | K46: 0.01 | R46: 0.2 | S46: 0.01 | T46: 0.02 | U46: 0.024 | V46: 0.001968507874
B47: 1.2 | C47: 0.01 | D47: 0.05 | E47: 0.024 | F47: 0.01 | G47: 1.2 | H47: 0.05 | I47: 0.03 | J47: 0.03 | K47: 0.05 | R47: 0.3 | S47: 0.03 | T47: 0.06 | U47: 0.024 | V47: 0.001968509843
B48: 1.21 | C48: -0.02 | D48: 0.05 | E48: 0.024 | F48: 0.03 | G48: 1.21 | H48: -0.03 | I48: 0.03 | J48: 0.03 | K48: 0.02 | R48: 0.5 | S48: 0.04 | T48: 0.06 | U48: 0.029 | V48: 0.00196851378
B49: 1.22 | C49: 0.02 | D49: 0.05 | E49: 0.024 | F49: 0.01 | G49: 1.22 | H49: 0.03 | I49: 0.03 | J49: 0.03 | K49: 0 | R49: 1 | S49: -0.06 | T49: 0.07 | U49: 0.029 | V49: 0.001968523622
B50: 1.23 | C50: -0.03 | D50: 0.03 | E50: 0.024 | F50: 0.01 | G50: 1.23 | H50: 0.06 | I50: 0.02 | J50: 0.03 | K50: 0.04 | R50: 2 | S50: 0.08 | T50: 0.03 | U50: 0.055 | V50: 0.001968543307
B51: 1.24 | C51: -0.03 | D51: 0.05 | E51: 0.024 | F51: 0.01 | G51: 1.24 | H51: 0.01 | I51: 0.02 | J51: 0.03 | K51: 0.01 | R51: 4 | S51: 0.02 | T51: 0.15 | U51: 0.091 | V51: 0.001968582677
B52: 1.25 | C52: -0.05 | D52: 0.08 | E52: 0.024 | F52: 0.06 | G52: 1.25 | H52: 0.01 | I52: 0.03 | J52: 0.03 | K52: 0 | R52: 6 | S52: 3 | T52: 6 | U52: 13 | V52: 0.001968622047
B53: 1.26 | C53: 0 | D53: 0.04 | E53: 0.024 | F53: 0.05 | G53: 1.26 | H53: -0.02 | I53: 0.02 | J53: 0.03 | K53: 0.03
B54: 1.27 | C54: -0.02 | D54: 0.04 | E54: 0.024 | F54: 0.03 | G54: 1.27 | H54: 0.04 | I54: 0.02 | J54: 0.03 | K54: 0.03
B55: 1.28 | C55: -0.03 | D55: 0.03 | E55: 0.024 | F55: 0.03 | G55: 1.28 | H55: 0.04 | I55: 0.02 | J55: 0.03 | K55: 0.04
B56: 1.29 | C56: 0.02 | D56: 0.04 | E56: 0.024 | F56: 0.03 | G56: 1.29 | H56: 0.01 | I56: 0.05 | J56: 0.03 | K56: 0.04
B57: 1.3 | C57: -0.2 | D57: 0.03 | E57: 0.024 | F57: 0.18 | G57: 1.3 | H57: -0.01 | I57: 0.02 | J57: 0.03 | K57: 0.01
B58: 1.31 | C58: 0.01 | D58: 0.04 | E58: 0.024 | F58: 0.01 | G58: 1.31 | H58: 0.02 | I58: 0.01 | J58: 0.03 | K58: 0.02
B59: 1.32 | C59: -0.02 | D59: 0.03 | E59: 0.024 | F59: 0 | G59: 1.32 | H59: 0.03 | I59: 0.02 | J59: 0.03 | K59: 0.01
B60: 1.33 | C60: -0.01 | D60: 0.03 | E60: 0.024 | F60: 0 | G60: 1.33 | H60: 0.03 | I60: 0.02 | J60: 0.03 | K60: 0.02
B61: 1.34 | C61: 0 | D61: 0.04 | E61: 0.024 | F61: 0.02 | G61: 1.34 | H61: 0.02 | I61: 0.01 | J61: 0.03 | K61: 0
B62: 1.35 | C62: -0.01 | D62: 0.05 | E62: 0.024 | F62: 0.02 | G62: 1.35 | H62: -0.01 | I62: 0.04 | J62: 0.03 | K62: 0
B63: 1.36 | C63: 0.04 | D63: 0.06 | E63: 0.024 | F63: 0.01 | G63: 1.36 | H63: 0 | I63: 0.01 | J63: 0.03 | K63: 0.05
B64: 1.37 | C64: -0.03 | D64: 0.04 | E64: 0.024 | F64: 0.05 | G64: 1.37 | H64: 0.03 | I64: 0.03 | J64: 0.03 | K64: 0.01
B65: 1.38 | C65: -0.02 | D65: 0.04 | E65: 0.024 | F65: 0 | G65: 1.38 | H65: 0.05 | I65: 0.03 | J65: 0.03 | K65: 0.038
B66: 1.39 | C66: -0.02 | D66: 0.03 | E66: 0.024 | F66: 0.03 | G66: 1.39 | H66: 0.06 | I66: 0.02 | J66: 0.03 | K66: 0.01
B67: 1.4 | C67: -0.02 | D67: 0.02 | E67: 0.024 | F67: 0.02 | G67: 1.4 | H67: 0.06 | I67: 0.02 | J67: 0.03 | K67: 0.02
B68: 1.41 | C68: 0 | D68: 0.03 | E68: 0.024 | F68: 0.01 | G68: 1.41 | H68: 0.01 | I68: 0.02 | J68: 0.03 | K68: 0
B69: 1.42 | C69: -0.04 | D69: 0.04 | E69: 0.024 | F69: 0.04 | G69: 1.42 | H69: -0.03 | I69: 0.02 | J69: 0.03 | K69: 0.03
B70: 1.43 | C70: 0.03 | D70: 0.03 | E70: 0.024 | F70: 0 | G70: 1.43 | H70: 0 | I70: 0.01 | J70: 0.03 | K70: 0.03
B71: 1.44 | C71: 0.01 | D71: 0.03 | E71: 0.024 | F71: 0 | G71: 1.44 | H71: 0.01 | I71: 0.01 | J71: 0.03 | K71: 0
B72: 1.45 | C72: -0.03 | D72: 0.05 | E72: 0.024 | F72: 0.02 | G72: 1.45 | H72: 0 | I72: 0.04 | J72: 0.03 | K72: 0.01
B73: 1.46 | C73: -0.07 | D73: 0.03 | E73: 0.024 | F73: 0.05 | G73: 1.46 | H73: 0.03 | I73: 0.03 | J73: 0.03 | K73: 0.01
B74: 1.47 | C74: -0.03 | D74: 0.06 | E74: 0.024 | F74: 0.04 | G74: 1.47 | H74: -0.04 | I74: 0.03 | J74: 0.03 | K74: 0.03
B75: 1.48 | C75: -0.05 | D75: 0.04 | E75: 0.024 | F75: 0.04 | G75: 1.48 | H75: -0.01 | I75: 0.01 | J75: 0.03 | K75: 0
B76: 1.49 | C76: -0.05 | D76: 0.03 | E76: 0.024 | F76: 0.03 | G76: 1.49 | H76: 0 | I76: 0 ,02 | J76: 0.03 | K76: 0.02
B77: 1.5 | C77: 0.01 | D77: 0.05 | E77: 0.024 | F77: 0.01 | G77: 1.5 | H77: 0.06 | I77: 0.03 | J77: 0.03 | K77: 0.06
B78: 2 | C78: -0.04 | D78: 0.05 | E78: 0.024 | F78: 0.01 | G78: 2 | H78: -0.04 | I78: 0.04 | J78: 0.03 | K78: 0.04
B79: 2.5 | C79: -0.03 | D79: 0.07 | E79: 0.024 | F79: 0.02 | G79: 2.5 | H79: 0.01 | I79: 0.06 | J79: 0.03 | K79: 0
B80: 3 | C80: 0 | D80: 0.05 | E80: 0.024 | F80: 0 | G80: 3 | H80: 0.02 | I80: 0.03 | J80: 0.03 | K80: 0.02
B81: 3.5 | C81: 0.01 | D81: 0.04 | E81: 0.024 | F81: 0.03 | G81: 3.5 | H81: 0.04 | I81: 0.02 | J81: 0.03 | K81: 0.02
B82: 4 | C82: -0.04 | D82: 0.04 | E82: 0.024 | F82: 0.09 | G82: 4 | H82: -0.05 | I82: 0.02 | J82: 0.03 | K82: 0
B83: 4.5 | C83: 0 | D83: 0.05 | E83: 0.024 | F83: 0.04 | G83: 4.5 | H83: 0.03 | I83: 0.02 | J83: 0.03 | K83: 0.01
B84: 5 | C84: -0.02 | D84: 0.06 | E84: 0.024 | F84: 0.03 | G84: 5 | H84: 0.02 | I84: 0.03 | J84: 0.03 | K84: 0.03
B85: 5.5 | C85: 0.05 | D85: 0.05 | E85: 0.024 | F85: 0.01 | G85: 5.5 | H85: 0.27 | I85: 0.03 | J85: 0.03 | K85: 0.21
B86: 6 | C86: 0.02 | D86: 0.02 | E86: 0.024 | F86: 0 | G86: 6 | H86: -0.01 | I86: 0.04 | J86: 0.03 | K86: 0.01
B87: 6.5 | C87: 0.02 | D87: 0.04 | E87: 0.024 | F87: 0.01 | G87: 6.5 | H87: -0.07 | I87: 0.02 | J87: 0.03 | K87: 0.04
B88: 7 | C88: 0.2 | D88: 0.05 | E88: 0.024 | F88: 0.16 | G88: 7 | H88: -0.08 | I88: 0.04 | J88: 0.03 | K88: 0.04
B89: 7.5 | C89: -0.05 | D89: 0.04 | E89: 0.024 | F89: 0.04 | G89: 7.5 | H89: -0.05 | I89: 0.02 | J89: 0.03 | K89: 0.04
B90: 8 | C90: 0.07 | D90: 0.07 | E90: 0.024 | F90: 0.01 | G90: 8 | H90: 0.06 | I90: 0.04 | J90: 0.03 | K90: 0
B91: 8.5 | C91: -0.08 | D91: 0.24 | E91: 0.024 | F91: 0.03 | G91: 8.5 | H91: -0.08 | I91: 0.03 | J91: 0.03 | K91: 0.03
B92: 9 | C92: -0.04 | D92: 0.06 | E92: 0.024 | F92: 0.01 | G92: 9 | H92: -0.08 | I92: 0.03 | J92: 0.03 | K92: 0.03
B93: 9.5 | C93: 0.04 | D93: 0.07 | E93: 0.024 | F93: 0.02 | G93: 9.5 | H93: 0.04 | I93: 0.02 | J93: 0.03 | K93: 0.02
B94: 10 | C94: -0.04 | D94: 0.05 | E94: 0.024 | F94: 0 | G94: 10 | H94: -0.04 | I94: 0.04 | J94: 0.03 | K94: 0
B95: 20 | C95: -0.09 | D95: 0.02 | E95: 0.029 | F95: 0.07 | G95: 20 | H95: -0.08 | I95: 0.04 | J95: 0.031 | K95: 0.06
B96: 30 | C96: 0.06 | D96: 0.04 | E96: 0.055 | F96: 0.01 | G96: 30 | H96: -1.31 | I96: 0.14 | J96: 0.055 | K96: 1.24
B97: 40 | C97: 0.04 | D97: 0.08 | E97: 0.055 | F97: 0.02 | G97: 40 | H97: -0.01 | I97: 0.06 | J97: 0.055 | K97: 0.05
B98: 50 | C98: 0.01 | D98: 0.11 | E98: 0.055 | F98: 0.03 | G98: 50 | H98: 0.12 | I98: 0.07 | J98: 0.055 | K98: 0.08
B99: 60 | C99: 0.24 | D99: 0.15 | E99: 0.08 | F99: 0.23 | G99: 60 | H99: -0.01 | I99: 0.07 | J99: 0.08 | K99: 0 | M99: Grado | O99: Cambios máximos por año permitidos en longitud
B100: 70 | C100: 0.08 | D100: 0.06 | E100: 0.08 | F100: 0.14 | G100: 70 | H100: 0.23 | I100: 0.16 | J100: 0.08 | K100: 0.17 | M100: K, 0 | O100:  (0,02 µm + 0,25  10-6  L) | T100: Datos_Bloques_CS_JBP_008 | W100: Pulgadas
B101: 80 | C101: -0.08 | D101: 0.28 | E101: 0.091 | F101: 0 | G101: 80 | H101: 0.04 | I101: 0.06 | J101: 0.091 | K101: 0.04 | M101: 1, 2 | O101:  (0,05 µm + 0,5  10-6  L) | R101: 0.02 | S101: 2.5e-07 | W101: =(S101/1000)/25.4 -> 9.842519685e-12
B102: 90 | C102: -0.28 | D102: 0.12 | E102: 0.091 | F102: 0.21 | G102: 90 | H102: -0.14 | I102: 0.08 | J102: 0.091 | K102: 0.07 | M102: NOTA - L se expresa en milímetros | R102: 0.05 | S102: 5e-07 | W102: =(S102/1000)/25.4 -> 1.968503937e-11
B103: 100 | C103: -0.08 | D103: 0.08 | E103: 0.091 | F103: 0.2 | G103: 100 | H103: -0.25 | I103: 0.08 | J103: 0.091 | K103: 0.13
A104: Bloque individual | B104: -100 | C104: -0.01 | D104: 0.12 | E104: 0.091 | F104: 0.14 | G104: -100 | H104: -0.01 | I104: 0.12 | J104: 0.091 | K104: 0.14 | M104: Instrumento: | P104: Bloques patrón
A105: Juego de bloques SWT 500mm | B105: 125 | C105: 0.38 | D105: 0.1 | E105: 0.3 | F105: =$R$102+($S$102*B105) -> 0.0500625 | G105: 125 | H105: 0.38 | I105: 0.1 | J105: 0.3 | K105: =$R$102+($S$102*G105) -> 0.0500625 | M105: Marca: | O105: Marca: | P105: SWT
B106: 150 | C106: -0.06 | D106: 0.18 | E106: 0.32 | F106: 0.050075 | G106: 150 | H106: -0.06 | I106: 0.18 | J106: 0.32 | K106: 0.050075 | M106: Grado | O106: Modelo: | P106: 1
B107: 175 | C107: -0.58 | D107: 0.21 | E107: 0.34 | F107: 0.0500875 | G107: 175 | H107: -0.58 | I107: 0.21 | J107: 0.34 | K107: 0.0500875 | M107: Rango: | O107: Rango: | P107: 125 mm a 500 mm
B108: 200 | C108: -0.5 | D108: 0.17 | E108: 0.36 | F108: 0.0501 | G108: 200 | H108: -0.5 | I108: 0.17 | J108: 0.36 | K108: 0.0501 | M108: Serie: | O108: Serie: | P108: 160203 / CS-JBP-008
B109: 250 | C109: -0.72 | D109: 0.14 | E109: 0.41 | F109: 0.050125 | G109: 250 | H109: -0.72 | I109: 0.14 | J109: 0.41 | K109: 0.050125 | M109: Certificado No: | O109: Certificado No: | P109: LMD170789
B110: 300 | C110: -0.84 | D110: 0.2 | E110: 0.45 | F110: 0.05015 | G110: 300 | H110: -0.84 | I110: 0.2 | J110: 0.45 | K110: 0.05015 | M110: Fecha de calibración: | O110: Fecha de calibración: | P110: Abril 28 de 2017
B111: 400 | C111: 0.66 | D111: 0.23 | E111: 0.58 | F111: 0.0502 | G111: 400 | H111: 0.66 | I111: 0.23 | J111: 0.58 | K111: 0.0502 | L111: =(R101/1000)/25.4 -> 7.874015748e-07 | M111: Próxima calibración: | O111: Próxima calibración: | P111: Abril 28 de 2018
B112: 500 | C112: 1.31 | D112: 0.25 | E112: 0.71 | F112: 0.05025 | G112: 500 | H112: 1.31 | I112: 0.25 | J112: 0.71 | K112: 0.05025 | L112: =(R102/1000)/25.4 -> 1.968503937e-06
B113: NO | C113: NO | D113: NO | E113: NO | F113: NO | G113: NO | H113: NO | I113: NO | J113: NO | K113: NO
B114: Calliper ext
B115: 0
B116: 20
B117: 50
B118: 100
B119: 150
B120: 200
B121: 300
B122: 400
B123: 500
B124: 550
B125: 600
B126: Calliper int
B127: 0
B128: 20
B129: 50
B130: 100
B131: 150
B132: 200
B133: 300
B134: 400
B135: 500
B136: 550
B137: 600
B138: Pulgadas
B139: 0.1
B140: 0.10005
B141: 0.1001
B142: 0.1002
B143: 0.1003
B144: 0.1004
B145: 0.1005
B146: 0.1006
B147: 0.1007
B148: 0.1008
B149: 0.1009
B150: 0.101
B151: 0.102
B152: 0.103
B153: 0.104
B154: 0.105
B155: 0.106
B156: 0.107
B157: 0.108
B158: 0.109
B159: 0.11
B160: 0.12
B161: 0.13
B162: 0.14
B163: 0.15
B164: 0.16
B165: 0.17
B166: 0.18
B167: 0.19
B168: 0.2
B169: 0.3
B170: 0.5
B171: 1
B172: 2
B173: 4
B174: 6

Sheet CORRECCIÓN INST AUX (hidden)
A1: TERMOHIGRÓMETRO T&D
A2: Instrumento: | C2: TERMOHIGRÓMETRO DIGITAL | F2: Marca: | G2: T&D CORPORATION
A3: Serie: | C3: 42BC021C | F3: Modelo: | G3: RTR-503
A4: Certificado No: | C4: CMK-TH-17183 / CMK-HR-17196 | F4: Rango: | G4: 18°C a 28 °C / 30 %HR a 70%HR
A5: Fecha de calibración: | C5: 2017-08-03 | F5: Resolución: | G5: 0.1 | H5: U: | I5: =MAX(D9:D11) -> 0.25
A7: 1 | C7: INSTALACIONES PERMANENTES
A8: Patrón | B8: Instrumento | C8: Corrección | D8: U | E8: Patrón | F8: Instrumento | G8: Corrección | H8: U
A9: 18.01 | B9: 18.2 | C9: -0.19 | D9: 0.25 | E9: 29.99 | F9: 31 | G9: -1 | H9: 1.3
A10: 23.02 | B10: 23.4 | C10: -0.39 | D10: 0.25 | E10: 50 | F10: 51 | G10: -1 | H10: 1.5
A11: 28.01 | B11: 28.3 | C11: -0.29 | D11: 0.25 | E11: 70 | F11: 72 | G11: -2 | H11: 1.5
A12: Minimo
A13: Temperatura | B13: 0.0058 | C13: =(#REF!)^2 ->  | D13: -0.2809 | E13: =#REF! ->  | F13: 2.9923 | G13: Temp (°C) | H13: =(B13*C13)+(D13*E13)+F13 -> 
A14: Humedad | B14: -0.0012 | C14: =(#REF!)^2 ->  | D14: 0.0952 | E14: =#REF! ->  | F14: -2.8362 | G14: Hum (%HR) | H14: =(B14*C14)+(D14*E14)+F14 -> 
A15: Máximo
A16: Temperatura | B16: 0.0058 | C16: =(#REF!)^2 ->  | D16: -0.2809 | E16: =#REF! ->  | F16: 2.9923 | G16: Temp (°C) | H16: =(B16*C16)+(D16*E16)+F16 -> 
A17: Humedad | B17: -0.0012 | C17: =(#REF!)^2 ->  | D17: 0.0952 | E17: =#REF! ->  | F17: -2.8362 | G17: Hum (%HR) | H17: =(B17*C17)+(D17*E17)+F17 -> 
A21: Instrumento: | C21: TERMOHIGRÓMETRO | F21: Marca: | G21: EXTECH
A22: Serie: | C22: A.078181 | F22: Modelo: | G22: SD700
A23: Certificado No: | C23: CMK-TH-17747 / CMK-HR-17744 | F23: Rango: | G23: 18°C a 28°C
A24: Fecha de calibración: | C24: 2017-08-10/ 2017-08-11 | F24: Resolución: | G24: 0.1 | H24: U: | I24: =MAX(D29:D31) -> 0.42
A26: 2 | B26: SITIO
A27: Correcciones condiciones ambientales
A28: Patrón | B28: Instrumento | C28: Corrección | D28: U | E28: Patrón | F28: Instrumento | G28: Corrección | H28: U
A29: 18.05 | B29: 18.1 | C29: -0.05 | D29: 0.42 | E29: 30.03 | F29: 28.3 | G29: 1.7 | H29: 2
A30: 24.05 | B30: 24.3 | C30: -0.25 | D30: 0.42 | E30: 50.02 | F30: 48.3 | G30: 1.7 | H30: 2
A31: 28.01 | B31: 28.3 | C31: -0.29 | D31: 0.42 | E31: 70.01 | F31: 68.3 | G31: 1.7 | H31: 2
A32: Minimo
A33: Temperatura | B33: 0.0022 | C33: =(#REF!)^2 ->  | D33: -0.1248 | E33: =#REF! ->  | F33: 1.4937 | G33: Temp (°C) | H33: =(B33*C33)+(D33*E33)+F33 -> 
A34: Humedad | B34: 0 | C34: =(#REF!)^2 ->  | D34: 9e-17 | E34: =#REF! ->  | F34: 1.7 | G34: Hum (%HR) | H34: =(B34*C34)+(D34*E34)+F34 -> 
A35: Máximo
A36: Temperatura | B36: 0.0022 | C36: =(#REF!)^2 ->  | D36: -0.1248 | E36: =#REF! ->  | F36: 1.4937 | G36: Temp (°C) | H36: =(B36*C36)+(D36*E36)+F36 -> 
A37: Humedad | B37: 0 | C37: =(#REF!)^2 ->  | D37: 9e-17 | E37: =#REF! ->  | F37: 1.7 | G37: Hum (%HR) | H37: =(B37*C37)+(D37*E37)+F37 -> 
A39: Instrumento: | C39: MICRÓMETRO EXTERIORES DIGITAL | F39: Marca: | G39: MITUTOYO
A40: Serie: | C40: 25078834 | F40: Modelo: | G40: 293-240
A41: Certificado No: | C41: CD-1444 | F41: Rango: | G41: 0 mm a 25 mm
A42: Fecha de calibración: | C42: Marzo 6 de 2017 | F42: Resolución: | G42: 0,001 mm | H42: U: | I42: 0.72
H43: k: | I43: 2
A46: Instrumento: | C46: PLANO ÓPTICO | F46: Marca: | G46: MITUTOYO
A47: Serie: | C47: 004251 | F47: Modelo: | G47: 158-120
A48: Certificado No: | C48: 1205648 | F48: Rango: | G48: N.A.
A49: Fecha de calibración: | C49: Febrero 12 de 2018 | F49: Resolución: | G49: N.A. | H49: U: | I49: 0,064 µm
A53: Instrumento: | C53: JUEGO DE PARALELOS ÓPTICOS | F53: Marca: | G53: MITUTOYO
A54: Serie: | C54: 006367 | F54: Modelo: | G54: 157-903
A55: Certificado No: | C55: 1205649 | F55: Rango: | G55: N.A.
A56: Fecha de calibración: | C56: Febrero 12 de 2018 | F56: Resolución: | G56: N.A. | H56: U: | I56: 0,087 µm

Sheet TABLA DE CONVERSIÓN 1 (hidden)
A1: TABLAS DE CONVERSIÓN PARA UNIDADES DE PRESIÓN - NTC 3669:1995
A2: UNIDADES | B2: m | C2: mm | D2: μm | E2: in | F2: mil
A3: m | B3: 1 | C3: 1000 | D3: 1000000 | E3: 39.3701 | F3: 39370.1
A4: mm | B4: 0.001 | C4: 1 | D4: 1000 | E4: 0.03936996 | F4: 39.3701
A5: μm | B5: 1e-06 | C5: 0.001 | D5: 1 | E5: 3.936996e-05 | F5: 0.03937008
A6: in | B6: 0.0254 | C6: 25.4 | D6: 25400 | E6: 1 | F6: 1000
A7: mil | B7: 2.54e-05 | C7: 0.0254 | D7: 25.4 | E7: 0.001 | F7: 1

Sheet TABLA DE CONVERSIÓN (hidden)
A1: TABLAS DE CONVERSIÓN PARA UNIDADES
A2: UNIDADES | B2: m | C2: mm | D2: μm | E2: in | F2: mil
A3: m | B3: 1 | C3: 1000 | D3: 1000000 | E3: 39.3701 | F3: 39370.1
A4: mm | B4: 0.001 | C4: 1 | D4: 1000 | E4: 0.03936996 | F4: 39.3701
A5: μm | B5: 1e-06 | C5: 0.001 | D5: 1 | E5: 3.936996e-05 | F5: 0.03937008
A6: in | B6: 0.0254 | C6: 25.4 | D6: 25400 | E6: 1 | F6: 1000
A7: mil | B7: 2.54e-05 | C7: 0.0254 | D7: 25.4 | E7: 0.001 | F7: 1
